Workbook

Sheet Inicio EcuS
A23: Descargue la versión Kindle
K32: Miguel Cervantes Jiménez

Sheet Oculto EcuS (hidden)
A1: COBB-DOUGLAS 1 | C1: Recta Presupuestaria | J1: Curva de Indiferencia | Y1: COMP. PERFECTOS 1 | AB1: Recta Presupuestaria | AD1: Curva de Indiferencia | AI1: SUSTITUTOS PERFECTOS | AL1: Recta Presupuestaria | AN1: Curva de Indiferencia | AS1: CUASILINEALES | AW1: Recta Presupuestaria | BC1: Curva de Indiferencia | BG1: HICKS | BH1: COBB-DOUGLAS 1 | BJ1: Recta Presupuestaria | BQ1: Curva de Indiferencia | BT1: HICKS | BU1: COMP. PERFECTOS 1 | BX1: Recta Presupuestaria | BZ1: Curva de Indiferencia | CE1: HICKS | CF1: SUSTITUTOS PERFECTOS | CI1: Recta Presupuestaria | CK1: Curva de Indiferencia
A2: Unidades | B2: ponderador | C2: x1 | D2: x2 | E2: x1lin | G2: x2lin | I2: Cota | J2: x1 | K2: x2 | Y2: Unidades | Z2: ponderador | AB2: x1 | AC2: x2 | AD2: vertice | AE2: x1line | AF2: x2line | AG2: Vertice2 | AI2: Unidades | AJ2: ponderador | AL2: x1 | AM2: x2 | AN2: x1lin | AO2: sip1>p2 | AS2: Unidades | AT2: Unidades | AU2: ponderador | AV2: ponderador | AW2: x1 | AX2: x2 | AY2: x1lin | BA2: x2lin | BC2: x1 | BD2: x2 | BH2: Unidades | BI2: ponderador | BJ2: x1 | BK2: x2 | BL2: x1lin | BN2: x2lin | BP2: Cota | BQ2: x1 | BR2: x2 | BU2: Unidades | BV2: ponderador | BX2: x1 | BY2: x2 | BZ2: vertice | CA2: x1line | CB2: x2line | CC2: Vertice2 | CF2: Unidades | CG2: ponderador | CI2: x1 | CJ2: x2 | CK2: x1lin | CL2: sip1>p2
A3: 1 | B3: 0 | C3: =$C$25/$C$26*B3 -> 0 | D3: =$C$25/$C$28-($C$26/$C$28*'Oculto EcuS'!C3) -> 28.57 | E3: =$E$27 -> 20 | F3: =$F$27*B3 -> 0 | G3: =$E$27*'Oculto EcuS'!B3 -> 0 | H3: =$F$27 -> 17.14285714 | Y3: 1 | Z3: 0 | AA3: 1.00 | AB3: =$AB$25/$AB$26*Z3 -> 0 | AC3: =$AB$25/$AB$27*AA3 -> 50.00 | AD3: =AB28 -> 17.65 | AE3: =AD3+(($AD$28-AD3)*Z3) -> 17.65 | AF3: =AG3+(($AF$28-AD3)*Z3) -> 35.29 | AG3: =$AB$29 -> 35.29 | AI3: 1 | AJ3: 0 | AK3: 1.00 | AL3: =$AK$26*AJ3 -> 0 | AM3: =$AK$27*AK3 -> 40.00 | AN3: =IF($AM$26<$AL$26,(($AM$31-AO3)/($AK$33)),($AL$29*AJ3)) -> 0 | AO3: =$AM$31*AK3 -> 50.00 | AS3: 0.01 | AT3: 1 | AU3: 1.00 | AV3: 0 | AW3: =($AU$26/$AV$26)*AV3 -> 0 | AX3: =($AU$26/$AX$26)*AU3 -> 3.00 | AY3: =$BA$26 -> 33.3 | AZ3: =$BB$26*AV3 -> 0 | BA3: =$BA$26*AV3 -> 0 | BB3: =$BB$26 -> 2.0 | BC3: =$BA$26*AS3 -> 0.33 | BD3: =$AZ$26-(LN(BC3)) -> 6.61 | BH3: 1 | BI3: 0 | BJ3: =$BJ$25/$BJ$26*BI3 -> 0 | BK3: =$BJ$25/$BJ$28-$BJ$26/$BJ$28*BJ3 -> 40.00 | BL3: =$BL$27 -> 25.00 | BM3: =$BM$27*BI3 -> 0 | BN3: =$BM$27*'Oculto EcuS'!BI3 -> 0 | BO3: =$BM$27 -> 20.00 | BU3: 1 | BV3: 0 | BW3: 1.00 | BX3: =$BX$25/$BX$26*BV3 -> 0 | BY3: =$BX$25/$BX$27*BW3 -> 25.00 | BZ3: =BX28 -> 12.50 | CA3: =BZ3+(($BZ$28-BZ3)*BV3) -> 12.50 | CB3: =CC3+(($CB$28-BZ3)*BV3) -> 12.50 | CC3: =$BX$29 -> 12.50 | CF3: 1 | CG3: 0 | CH3: 1.00 | CI3: =$CH$25/$CH$29*CG3 -> 0 | CJ3: =$CH$25/$CH$30-(($CH$29/$CH$30)*CI3) -> 50.00 | CK3: =CI3 -> 0 | CL3: =IF($CI$26<$CJ$26,(MAX($CI$29:$CJ$30)-CK3),(MIN($CI$29:$CJ$30)-CK3)) -> 75.00
A4: 2 | B4: 0.05 | C4: =$C$25/$C$26*B4 -> 2.50 | D4: =$C$25/$C$28-($C$26/$C$28*'Oculto EcuS'!C4) -> 27.14 | E4: =$E$27 -> 20 | F4: 0.86 | G4: =$E$27*'Oculto EcuS'!B4 -> 1.00 | H4: =$F$27 -> 17.14285714 | I4: 0.28 | J4: =C4 -> 2.50 | K4: =($F$28/(J4^($E$26)))^(1/$F$26) -> 68.57 | Y4: 2 | Z4: 0.05 | AA4: 0.95 | AB4: =$AB$25/$AB$26*Z4 -> 3.00 | AC4: =$AB$25/$AB$27*AA4 -> 47.50 | AD4: =AD3 -> 17.65 | AE4: =AD4+(($AD$28-AD4)*Z4) -> 19.76 | AF4: =AG4+(($AF$28-AD4)*Z4) -> 36.91 | AG4: =$AB$29 -> 35.29 | AI4: 2 | AJ4: 0.05 | AK4: 0.95 | AL4: =$AK$26*AJ4 -> 2.50 | AM4: =$AK$27*AK4 -> 38.00 | AN4: =IF($AM$26<$AL$26,(($AM$31-AO4)/($AK$33)),($AL$29*AJ4)) -> 2.50 | AO4: =$AM$31*AK4 -> 47.50 | AS4: 0.1 | AT4: 2 | AU4: 0.95 | AV4: 0.05 | AW4: =($AU$26/$AV$26)*AV4 -> 5.00 | AX4: =($AU$26/$AX$26)*AU4 -> 2.85 | AY4: =$BA$26 -> 33.3 | AZ4: =$BB$26*AV4 -> 0.10 | BA4: =$BA$26*AV4 -> 1.67 | BB4: =$BB$26 -> 2.0 | BC4: =$BA$26*AS4 -> 3.33 | BD4: =$AZ$26-(LN(BC4)) -> 4.30 | BH4: 2 | BI4: 0.05 | BJ4: =$BJ$25/$BJ$26*BI4 -> 2.50 | BK4: =$BJ$25/$BJ$28-$BJ$26/$BJ$28*BJ4 -> 38.00 | BL4: =$BL$27 -> 25.00 | BM4: =$BM$27*BI4 -> 1.00 | BN4: =$BM$27*'Oculto EcuS'!BI4 -> 1.00 | BO4: =$BM$27 -> 20.00 | BP4: 0.28 | BQ4: =BJ4 -> 2.50 | BR4: =($BM$28/(BQ4^($BL$26)))^(1/$BM$26) -> 200.00 | BU4: 2 | BV4: 0.05 | BW4: 0.95 | BX4: =$BX$25/$BX$26*BV4 -> 1.25 | BY4: =$BX$25/$BX$27*BW4 -> 23.75 | BZ4: =BZ3 -> 12.50 | CA4: =BZ4+(($BZ$28-BZ4)*BV4) -> 13.13 | CB4: =CC4+(($CB$28-BZ4)*BV4) -> 13.13 | CC4: =$BX$29 -> 12.50 | CF4: 2 | CG4: 0.05 | CH4: 0.95 | CI4: =$CH$25/$CH$29*CG4 -> 3.75 | CJ4: =$CH$25/$CH$30-(($CH$29/$CH$30)*CI4) -> 47.50 | CK4: =CI4 -> 3.75 | CL4: =IF($CI$26<$CJ$26,(MAX($CI$29:$CJ$30)-CK4),(MIN($CI$29:$CJ$30)-CK4)) -> 71.25
A5: 3 | B5: 0.10 | C5: 5.00 | D5: =$C$25/$C$28-($C$26/$C$28*'Oculto EcuS'!C5) -> 25.71 | E5: 20 | F5: 1.71 | G5: =$E$27*'Oculto EcuS'!B5 -> 2.00 | H5: 17.14285714 | I5: 0.36 | J5: =C5 -> 5.00 | K5: =($F$28/(J5^($E$26)))^(1/$F$26) -> 43.20 | Y5: 3 | Z5: 0.10 | AA5: 0.90 | AB5: 6.00 | AC5: 45.00 | AD5: =AD4 -> 17.65 | AE5: 21.88 | AF5: 38.53 | AG5: 35.29 | AI5: 3 | AJ5: 0.10 | AK5: 0.90 | AL5: 5.00 | AM5: 36.00 | AN5: 5.00 | AO5: 45.00 | AS5: 0.2 | AT5: 3 | AU5: 0.90 | AV5: 0.10 | AW5: 10.00 | AX5: 2.70 | AY5: 33.3 | AZ5: 0.20 | BA5: 3.33 | BB5: 2.0 | BC5: 6.67 | BD5: 3.61 | BH5: 3 | BI5: 0.10 | BJ5: 5.00 | BK5: 36.00 | BL5: 25.00 | BM5: 2.00 | BN5: =$BM$27*'Oculto EcuS'!BI5 -> 2.00 | BO5: 20.00 | BP5: 0.36 | BQ5: 5.00 | BR5: =($BM$28/(BQ5^($BL$26)))^(1/$BM$26) -> 100.00 | BU5: 3 | BV5: 0.10 | BW5: 0.90 | BX5: 2.50 | BY5: 22.50 | BZ5: =BZ4 -> 12.50 | CA5: 13.75 | CB5: 13.75 | CC5: 12.50 | CF5: 3 | CG5: 0.10 | CH5: 0.90 | CI5: 7.50 | CJ5: 45.00 | CK5: 7.50 | CL5: 67.50
A6: 4 | B6: 0.15 | C6: 7.50 | D6: =$C$25/$C$28-($C$26/$C$28*'Oculto EcuS'!C6) -> 24.29 | E6: 20 | F6: 2.57 | G6: =$E$27*'Oculto EcuS'!B6 -> 3.00 | H6: 17.14285714 | I6: 0.44 | J6: 7.50 | K6: 32.97 | Y6: 4 | Z6: 0.15 | AA6: 0.85 | AB6: 9.00 | AC6: 42.50 | AD6: 17.65 | AE6: 24.00 | AF6: 40.15 | AG6: 35.29 | AI6: 4 | AJ6: 0.15 | AK6: 0.85 | AL6: 7.50 | AM6: 34.00 | AN6: 7.50 | AO6: 42.50 | AS6: 0.3 | AT6: 4 | AU6: 0.85 | AV6: 0.15 | AW6: 15.00 | AX6: 2.55 | AY6: 33.3 | AZ6: 0.30 | BA6: 5.00 | BB6: 2.0 | BC6: 10.00 | BD6: 3.20 | BH6: 4 | BI6: 0.15 | BJ6: 7.50 | BK6: 34.00 | BL6: 25.00 | BM6: 3.00 | BN6: =$BM$27*'Oculto EcuS'!BI6 -> 3.00 | BO6: 20.00 | BP6: 0.44 | BQ6: 7.50 | BR6: 66.67 | BU6: 4 | BV6: 0.15 | BW6: 0.85 | BX6: 3.75 | BY6: 21.25 | BZ6: 12.50 | CA6: 14.38 | CB6: 14.38 | CC6: 12.50 | CF6: 4 | CG6: 0.15 | CH6: 0.85 | CI6: 11.25 | CJ6: 42.50 | CK6: 11.25 | CL6: 63.75
A7: 5 | B7: 0.20 | C7: 10.00 | D7: =$C$25/$C$28-($C$26/$C$28*'Oculto EcuS'!C7) -> 22.86 | E7: 20 | F7: 3.43 | G7: =$E$27*'Oculto EcuS'!B7 -> 4.00 | H7: 17.14285714 | I7: 0.52 | J7: 10.00 | K7: 27.21 | Y7: 5 | Z7: 0.20 | AA7: 0.80 | AB7: 12.00 | AC7: 40.00 | AD7: 17.65 | AE7: 26.12 | AF7: 41.76 | AG7: 35.29 | AI7: 5 | AJ7: 0.20 | AK7: 0.80 | AL7: 10.00 | AM7: 32.00 | AN7: 10.00 | AO7: 40.00 | AS7: 0.4 | AT7: 5 | AU7: 0.80 | AV7: 0.20 | AW7: 20.00 | AX7: 2.40 | AY7: 33.3 | AZ7: 0.40 | BA7: 6.67 | BB7: 2.0 | BC7: 13.33 | BD7: 2.92 | BH7: 5 | BI7: 0.20 | BJ7: 10.00 | BK7: 32.00 | BL7: 25.00 | BM7: 4.00 | BN7: =$BM$27*'Oculto EcuS'!BI7 -> 4.00 | BO7: 20.00 | BP7: 0.52 | BQ7: 10.00 | BR7: 50.00 | BU7: 5 | BV7: 0.20 | BW7: 0.80 | BX7: 5.00 | BY7: 20.00 | BZ7: 12.50 | CA7: 15.00 | CB7: 15.00 | CC7: 12.50 | CF7: 5 | CG7: 0.20 | CH7: 0.80 | CI7: 15.00 | CJ7: 40.00 | CK7: 15.00 | CL7: 60.00
A8: 6 | B8: 0.25 | C8: 12.50 | D8: =$C$25/$C$28-($C$26/$C$28*'Oculto EcuS'!C8) -> 21.43 | E8: 20 | F8: 4.29 | G8: =$E$27*'Oculto EcuS'!B8 -> 5.00 | H8: 17.14285714 | I8: 0.6 | J8: 12.50 | K8: 23.45 | Y8: 6 | Z8: 0.25 | AA8: 0.75 | AB8: 15.00 | AC8: 37.50 | AD8: 17.65 | AE8: 28.24 | AF8: 43.38 | AG8: 35.29 | AI8: 6 | AJ8: 0.25 | AK8: 0.75 | AL8: 12.50 | AM8: 30.00 | AN8: 12.50 | AO8: 37.50 | AS8: 0.5 | AT8: 6 | AU8: 0.75 | AV8: 0.25 | AW8: 25.00 | AX8: 2.25 | AY8: 33.3 | AZ8: 0.50 | BA8: 8.33 | BB8: 2.0 | BC8: 16.67 | BD8: 2.69 | BH8: 6 | BI8: 0.25 | BJ8: 12.50 | BK8: 30.00 | BL8: 25.00 | BM8: 5.00 | BN8: =$BM$27*'Oculto EcuS'!BI8 -> 5.00 | BO8: 20.00 | BP8: 0.6 | BQ8: 12.50 | BR8: 40.00 | BU8: 6 | BV8: 0.25 | BW8: 0.75 | BX8: 6.25 | BY8: 18.75 | BZ8: 12.50 | CA8: 15.63 | CB8: 15.63 | CC8: 12.50 | CF8: 6 | CG8: 0.25 | CH8: 0.75 | CI8: 18.75 | CJ8: 37.50 | CK8: 18.75 | CL8: 56.25
A9: 7 | B9: 0.30 | C9: 15.00 | D9: =$C$25/$C$28-($C$26/$C$28*'Oculto EcuS'!C9) -> 20.00 | E9: 20 | F9: 5.14 | G9: =$E$27*'Oculto EcuS'!B9 -> 6.00 | H9: 17.14285714 | I9: 0.68 | J9: 15.00 | K9: 20.77 | Y9: 7 | Z9: 0.30 | AA9: 0.70 | AB9: 18.00 | AC9: 35.00 | AD9: 17.65 | AE9: 30.35 | AF9: 45.00 | AG9: 35.29 | AI9: 7 | AJ9: 0.30 | AK9: 0.70 | AL9: 15.00 | AM9: 28.00 | AN9: 15.00 | AO9: 35.00 | AS9: 0.6 | AT9: 7 | AU9: 0.70 | AV9: 0.30 | AW9: 30.00 | AX9: 2.10 | AY9: 33.3 | AZ9: 0.60 | BA9: 10.00 | BB9: 2.0 | BC9: 20.00 | BD9: 2.51 | BH9: 7 | BI9: 0.30 | BJ9: 15.00 | BK9: 28.00 | BL9: 25.00 | BM9: 6.00 | BN9: =$BM$27*'Oculto EcuS'!BI9 -> 6.00 | BO9: 20.00 | BP9: 0.68 | BQ9: 15.00 | BR9: 33.33 | BU9: 7 | BV9: 0.30 | BW9: 0.70 | BX9: 7.50 | BY9: 17.50 | BZ9: 12.50 | CA9: 16.25 | CB9: 16.25 | CC9: 12.50 | CF9: 7 | CG9: 0.30 | CH9: 0.70 | CI9: 22.50 | CJ9: 35.00 | CK9: 22.50 | CL9: 52.50
A10: 8 | B10: 0.35 | C10: 17.50 | D10: =$C$25/$C$28-($C$26/$C$28*'Oculto EcuS'!C10) -> 18.57 | E10: 20 | F10: 6.00 | G10: =$E$27*'Oculto EcuS'!B10 -> 7.00 | H10: 17.14285714 | I10: 0.76 | J10: 17.50 | K10: 18.74 | Y10: 8 | Z10: 0.35 | AA10: 0.65 | AB10: 21.00 | AC10: 32.50 | AD10: 17.65 | AE10: 32.47 | AF10: 46.62 | AG10: 35.29 | AI10: 8 | AJ10: 0.35 | AK10: 0.65 | AL10: 17.50 | AM10: 26.00 | AN10: 17.50 | AO10: 32.50 | AS10: 0.7 | AT10: 8 | AU10: 0.65 | AV10: 0.35 | AW10: 35.00 | AX10: 1.95 | AY10: 33.3 | AZ10: 0.70 | BA10: 11.67 | BB10: 2.0 | BC10: 23.33 | BD10: 2.36 | BH10: 8 | BI10: 0.35 | BJ10: 17.50 | BK10: 26.00 | BL10: 25.00 | BM10: 7.00 | BN10: =$BM$27*'Oculto EcuS'!BI10 -> 7.00 | BO10: 20.00 | BP10: 0.76 | BQ10: 17.50 | BR10: 28.57 | BU10: 8 | BV10: 0.35 | BW10: 0.65 | BX10: 8.75 | BY10: 16.25 | BZ10: 12.50 | CA10: 16.88 | CB10: 16.88 | CC10: 12.50 | CF10: 8 | CG10: 0.35 | CH10: 0.65 | CI10: 26.25 | CJ10: 32.50 | CK10: 26.25 | CL10: 48.75
A11: 9 | B11: 0.40 | C11: 20.00 | D11: =$C$25/$C$28-($C$26/$C$28*'Oculto EcuS'!C11) -> 17.14 | E11: 20 | F11: 6.86 | G11: =$E$27*'Oculto EcuS'!B11 -> 8.00 | H11: 17.14285714 | I11: 0.84 | J11: 20.00 | K11: 17.14 | Y11: 9 | Z11: 0.40 | AA11: 0.60 | AB11: 24.00 | AC11: 30.00 | AD11: 17.65 | AE11: 34.59 | AF11: 48.24 | AG11: 35.29 | AI11: 9 | AJ11: 0.40 | AK11: 0.60 | AL11: 20.00 | AM11: 24.00 | AN11: 20.00 | AO11: 30.00 | AS11: 0.8 | AT11: 9 | AU11: 0.60 | AV11: 0.40 | AW11: 40.00 | AX11: 1.80 | AY11: 33.3 | AZ11: 0.80 | BA11: 13.33 | BB11: 2.0 | BC11: 26.67 | BD11: 2.22 | BH11: 9 | BI11: 0.40 | BJ11: 20.00 | BK11: 24.00 | BL11: 25.00 | BM11: 8.00 | BN11: =$BM$27*'Oculto EcuS'!BI11 -> 8.00 | BO11: 20.00 | BP11: 0.84 | BQ11: 20.00 | BR11: 25.00 | BU11: 9 | BV11: 0.40 | BW11: 0.60 | BX11: 10.00 | BY11: 15.00 | BZ11: 12.50 | CA11: 17.50 | CB11: 17.50 | CC11: 12.50 | CF11: 9 | CG11: 0.40 | CH11: 0.60 | CI11: 30.00 | CJ11: 30.00 | CK11: 30.00 | CL11: 45.00
A12: 10 | B12: 0.45 | C12: 22.50 | D12: =$C$25/$C$28-($C$26/$C$28*'Oculto EcuS'!C12) -> 15.71 | E12: 20 | F12: 7.71 | G12: =$E$27*'Oculto EcuS'!B12 -> 9.00 | H12: 17.14285714 | I12: 0.92 | J12: 22.50 | K12: 15.85 | Y12: 10 | Z12: 0.45 | AA12: 0.55 | AB12: 27.00 | AC12: 27.50 | AD12: 17.65 | AE12: 36.71 | AF12: 49.85 | AG12: 35.29 | AI12: 10 | AJ12: 0.45 | AK12: 0.55 | AL12: 22.50 | AM12: 22.00 | AN12: 22.50 | AO12: 27.50 | AS12: 0.9 | AT12: 10 | AU12: 0.55 | AV12: 0.45 | AW12: 45.00 | AX12: 1.65 | AY12: 33.3 | AZ12: 0.90 | BA12: 15.00 | BB12: 2.0 | BC12: 30.00 | BD12: 2.11 | BH12: 10 | BI12: 0.45 | BJ12: 22.50 | BK12: 22.00 | BL12: 25.00 | BM12: 9.00 | BN12: =$BM$27*'Oculto EcuS'!BI12 -> 9.00 | BO12: 20.00 | BP12: 0.92 | BQ12: 22.50 | BR12: 22.22 | BU12: 10 | BV12: 0.45 | BW12: 0.55 | BX12: 11.25 | BY12: 13.75 | BZ12: 12.50 | CA12: 18.13 | CB12: 18.13 | CC12: 12.50 | CF12: 10 | CG12: 0.45 | CH12: 0.55 | CI12: 33.75 | CJ12: 27.50 | CK12: 33.75 | CL12: 41.25
A13: 11 | B13: 0.50 | C13: 25.00 | D13: =$C$25/$C$28-($C$26/$C$28*'Oculto EcuS'!C13) -> 14.29 | E13: 20 | F13: 8.57 | G13: =$E$27*'Oculto EcuS'!B13 -> 10.00 | H13: 17.14285714 | I13: 1 | J13: 25.00 | K13: 14.77 | Y13: 11 | Z13: 0.50 | AA13: 0.50 | AB13: 30.00 | AC13: 25.00 | AD13: 17.65 | AE13: 38.82 | AF13: 51.47 | AG13: 35.29 | AI13: 11 | AJ13: 0.50 | AK13: 0.50 | AL13: 25.00 | AM13: 20.00 | AN13: 25.00 | AO13: 25.00 | AS13: 1 | AT13: 11 | AU13: 0.50 | AV13: 0.50 | AW13: 50.00 | AX13: 1.50 | AY13: 33.3 | AZ13: 1.00 | BA13: 16.67 | BB13: 2.0 | BC13: 33.33 | BD13: 2.00 | BH13: 11 | BI13: 0.50 | BJ13: 25.00 | BK13: 20.00 | BL13: 25.00 | BM13: 10.00 | BN13: =$BM$27*'Oculto EcuS'!BI13 -> 10.00 | BO13: 20.00 | BP13: 1 | BQ13: 25.00 | BR13: 20.00 | BU13: 11 | BV13: 0.50 | BW13: 0.50 | BX13: 12.50 | BY13: 12.50 | BZ13: 12.50 | CA13: 18.75 | CB13: 18.75 | CC13: 12.50 | CF13: 11 | CG13: 0.50 | CH13: 0.50 | CI13: 37.50 | CJ13: 25.00 | CK13: 37.50 | CL13: 37.50
A14: 12 | B14: 0.55 | C14: 27.50 | D14: =$C$25/$C$28-($C$26/$C$28*'Oculto EcuS'!C14) -> 12.86 | E14: 20 | F14: 9.43 | G14: =$E$27*'Oculto EcuS'!B14 -> 11.00 | H14: 17.14285714 | I14: 1.08 | J14: 27.50 | K14: 13.86 | Y14: 12 | Z14: 0.55 | AA14: 0.45 | AB14: 33.00 | AC14: 22.50 | AD14: 17.65 | AE14: 40.94 | AF14: 53.09 | AG14: 35.29 | AI14: 12 | AJ14: 0.55 | AK14: 0.45 | AL14: 27.50 | AM14: 18.00 | AN14: 27.50 | AO14: 22.50 | AS14: 1.1 | AT14: 12 | AU14: 0.45 | AV14: 0.55 | AW14: 55.00 | AX14: 1.35 | AY14: 33.3 | AZ14: 1.10 | BA14: 18.33 | BB14: 2.0 | BC14: 36.67 | BD14: 1.90 | BH14: 12 | BI14: 0.55 | BJ14: 27.50 | BK14: 18.00 | BL14: 25.00 | BM14: 11.00 | BN14: =$BM$27*'Oculto EcuS'!BI14 -> 11.00 | BO14: 20.00 | BP14: 1.08 | BQ14: 27.50 | BR14: 18.18 | BU14: 12 | BV14: 0.55 | BW14: 0.45 | BX14: 13.75 | BY14: 11.25 | BZ14: 12.50 | CA14: 19.38 | CB14: 19.38 | CC14: 12.50 | CF14: 12 | CG14: 0.55 | CH14: 0.45 | CI14: 41.25 | CJ14: 22.50 | CK14: 41.25 | CL14: 33.75
A15: 13 | B15: 0.60 | C15: 30.00 | D15: =$C$25/$C$28-($C$26/$C$28*'Oculto EcuS'!C15) -> 11.43 | E15: 20 | F15: 10.29 | G15: =$E$27*'Oculto EcuS'!B15 -> 12.00 | H15: 17.14285714 | I15: 1.16 | J15: 30.00 | K15: 13.08 | Y15: 13 | Z15: 0.60 | AA15: 0.40 | AB15: 36.00 | AC15: 20.00 | AD15: 17.65 | AE15: 43.06 | AF15: 54.71 | AG15: 35.29 | AI15: 13 | AJ15: 0.60 | AK15: 0.40 | AL15: 30.00 | AM15: 16.00 | AN15: 30.00 | AO15: 20.00 | AS15: 1.2 | AT15: 13 | AU15: 0.40 | AV15: 0.60 | AW15: 60.00 | AX15: 1.20 | AY15: 33.3 | AZ15: 1.20 | BA15: 20.00 | BB15: 2.0 | BC15: 40.00 | BD15: 1.82 | BH15: 13 | BI15: 0.60 | BJ15: 30.00 | BK15: 16.00 | BL15: 25.00 | BM15: 12.00 | BN15: =$BM$27*'Oculto EcuS'!BI15 -> 12.00 | BO15: 20.00 | BP15: 1.16 | BQ15: 30.00 | BR15: 16.67 | BU15: 13 | BV15: 0.60 | BW15: 0.40 | BX15: 15.00 | BY15: 10.00 | BZ15: 12.50 | CA15: 20.00 | CB15: 20.00 | CC15: 12.50 | CF15: 13 | CG15: 0.60 | CH15: 0.40 | CI15: 45.00 | CJ15: 20.00 | CK15: 45.00 | CL15: 30.00
A16: 14 | B16: 0.65 | C16: 32.50 | D16: =$C$25/$C$28-($C$26/$C$28*'Oculto EcuS'!C16) -> 10.00 | E16: 20 | F16: 11.14 | G16: =$E$27*'Oculto EcuS'!B16 -> 13.00 | H16: 17.14285714 | I16: 1.24 | J16: 32.50 | K16: 12.40 | Y16: 14 | Z16: 0.65 | AA16: 0.35 | AB16: 39.00 | AC16: 17.50 | AD16: 17.65 | AE16: 45.18 | AF16: 56.32 | AG16: 35.29 | AI16: 14 | AJ16: 0.65 | AK16: 0.35 | AL16: 32.50 | AM16: 14.00 | AN16: 32.50 | AO16: 17.50 | AS16: 1.3 | AT16: 14 | AU16: 0.35 | AV16: 0.65 | AW16: 65.00 | AX16: 1.05 | AY16: 33.3 | AZ16: 1.30 | BA16: 21.67 | BB16: 2.0 | BC16: 43.33 | BD16: 1.74 | BH16: 14 | BI16: 0.65 | BJ16: 32.50 | BK16: 14.00 | BL16: 25.00 | BM16: 13.00 | BN16: =$BM$27*'Oculto EcuS'!BI16 -> 13.00 | BO16: 20.00 | BP16: 1.24 | BQ16: 32.50 | BR16: 15.38 | BU16: 14 | BV16: 0.65 | BW16: 0.35 | BX16: 16.25 | BY16: 8.75 | BZ16: 12.50 | CA16: 20.63 | CB16: 20.63 | CC16: 12.50 | CF16: 14 | CG16: 0.65 | CH16: 0.35 | CI16: 48.75 | CJ16: 17.50 | CK16: 48.75 | CL16: 26.25
A17: 15 | B17: 0.70 | C17: 35.00 | D17: =$C$25/$C$28-($C$26/$C$28*'Oculto EcuS'!C17) -> 8.57 | E17: 20 | F17: 12.00 | G17: =$E$27*'Oculto EcuS'!B17 -> 14.00 | H17: 17.14285714 | I17: 1.32 | J17: 35.00 | K17: 11.80 | Y17: 15 | Z17: 0.70 | AA17: 0.30 | AB17: 42.00 | AC17: 15.00 | AD17: 17.65 | AE17: 47.29 | AF17: 57.94 | AG17: 35.29 | AI17: 15 | AJ17: 0.70 | AK17: 0.30 | AL17: 35.00 | AM17: 12.00 | AN17: 35.00 | AO17: 15.00 | AS17: 1.4 | AT17: 15 | AU17: 0.30 | AV17: 0.70 | AW17: 70.00 | AX17: 0.90 | AY17: 33.3 | AZ17: 1.40 | BA17: 23.33 | BB17: 2.0 | BC17: 46.67 | BD17: 1.66 | BH17: 15 | BI17: 0.70 | BJ17: 35.00 | BK17: 12.00 | BL17: 25.00 | BM17: 14.00 | BN17: =$BM$27*'Oculto EcuS'!BI17 -> 14.00 | BO17: 20.00 | BP17: 1.32 | BQ17: 35.00 | BR17: 14.29 | BU17: 15 | BV17: 0.70 | BW17: 0.30 | BX17: 17.50 | BY17: 7.50 | BZ17: 12.50 | CA17: 21.25 | CB17: 21.25 | CC17: 12.50 | CF17: 15 | CG17: 0.70 | CH17: 0.30 | CI17: 52.50 | CJ17: 15.00 | CK17: 52.50 | CL17: 22.50
A18: 16 | B18: 0.75 | C18: 37.50 | D18: =$C$25/$C$28-($C$26/$C$28*'Oculto EcuS'!C18) -> 7.14 | E18: 20 | F18: 12.86 | G18: =$E$27*'Oculto EcuS'!B18 -> 15.00 | H18: 17.14285714 | I18: 1.4 | J18: 37.50 | K18: 11.27 | Y18: 16 | Z18: 0.75 | AA18: 0.25 | AB18: 45.00 | AC18: 12.50 | AD18: 17.65 | AE18: 49.41 | AF18: 59.56 | AG18: 35.29 | AI18: 16 | AJ18: 0.75 | AK18: 0.25 | AL18: 37.50 | AM18: 10.00 | AN18: 37.50 | AO18: 12.50 | AS18: 1.5 | AT18: 16 | AU18: 0.25 | AV18: 0.75 | AW18: 75.00 | AX18: 0.75 | AY18: 33.3 | AZ18: 1.50 | BA18: 25.00 | BB18: 2.0 | BC18: 50.00 | BD18: 1.59 | BH18: 16 | BI18: 0.75 | BJ18: 37.50 | BK18: 10.00 | BL18: 25.00 | BM18: 15.00 | BN18: =$BM$27*'Oculto EcuS'!BI18 -> 15.00 | BO18: 20.00 | BP18: 1.4 | BQ18: 37.50 | BR18: 13.33 | BU18: 16 | BV18: 0.75 | BW18: 0.25 | BX18: 18.75 | BY18: 6.25 | BZ18: 12.50 | CA18: 21.88 | CB18: 21.88 | CC18: 12.50 | CF18: 16 | CG18: 0.75 | CH18: 0.25 | CI18: 56.25 | CJ18: 12.50 | CK18: 56.25 | CL18: 18.75
A19: 17 | B19: 0.80 | C19: 40.00 | D19: =$C$25/$C$28-($C$26/$C$28*'Oculto EcuS'!C19) -> 5.71 | E19: 20 | F19: 13.71 | G19: =$E$27*'Oculto EcuS'!B19 -> 16.00 | H19: 17.14285714 | I19: 1.48 | J19: 40.00 | K19: 10.80 | Y19: 17 | Z19: 0.80 | AA19: 0.20 | AB19: 48.00 | AC19: 10.00 | AD19: 17.65 | AE19: 51.53 | AF19: 61.18 | AG19: 35.29 | AI19: 17 | AJ19: 0.80 | AK19: 0.20 | AL19: 40.00 | AM19: 8.00 | AN19: 40.00 | AO19: 10.00 | AS19: 1.6 | AT19: 17 | AU19: 0.20 | AV19: 0.80 | AW19: 80.00 | AX19: 0.60 | AY19: 33.3 | AZ19: 1.60 | BA19: 26.67 | BB19: 2.0 | BC19: 53.33 | BD19: 1.53 | BH19: 17 | BI19: 0.80 | BJ19: 40.00 | BK19: 8.00 | BL19: 25.00 | BM19: 16.00 | BN19: =$BM$27*'Oculto EcuS'!BI19 -> 16.00 | BO19: 20.00 | BP19: 1.48 | BQ19: 40.00 | BR19: 12.50 | BU19: 17 | BV19: 0.80 | BW19: 0.20 | BX19: 20.00 | BY19: 5.00 | BZ19: 12.50 | CA19: 22.50 | CB19: 22.50 | CC19: 12.50 | CF19: 17 | CG19: 0.80 | CH19: 0.20 | CI19: 60.00 | CJ19: 10.00 | CK19: 60.00 | CL19: 15.00
A20: 18 | B20: 0.85 | C20: 42.50 | D20: =$C$25/$C$28-($C$26/$C$28*'Oculto EcuS'!C20) -> 4.29 | E20: 20 | F20: 14.57 | G20: =$E$27*'Oculto EcuS'!B20 -> 17.00 | H20: 17.14285714 | I20: 1.56 | J20: 42.50 | K20: 10.37 | Y20: 18 | Z20: 0.85 | AA20: 0.15 | AB20: 51.00 | AC20: 7.50 | AD20: 17.65 | AE20: 53.65 | AF20: 62.79 | AG20: 35.29 | AI20: 18 | AJ20: 0.85 | AK20: 0.15 | AL20: 42.50 | AM20: 6.00 | AN20: 42.50 | AO20: 7.50 | AS20: 1.7 | AT20: 18 | AU20: 0.15 | AV20: 0.85 | AW20: 85.00 | AX20: 0.45 | AY20: 33.3 | AZ20: 1.70 | BA20: 28.33 | BB20: 2.0 | BC20: 56.67 | BD20: 1.47 | BH20: 18 | BI20: 0.85 | BJ20: 42.50 | BK20: 6.00 | BL20: 25.00 | BM20: 17.00 | BN20: =$BM$27*'Oculto EcuS'!BI20 -> 17.00 | BO20: 20.00 | BP20: 1.56 | BQ20: 42.50 | BR20: 11.76 | BU20: 18 | BV20: 0.85 | BW20: 0.15 | BX20: 21.25 | BY20: 3.75 | BZ20: 12.50 | CA20: 23.13 | CB20: 23.13 | CC20: 12.50 | CF20: 18 | CG20: 0.85 | CH20: 0.15 | CI20: 63.75 | CJ20: 7.50 | CK20: 63.75 | CL20: 11.25
A21: 19 | B21: 0.90 | C21: 45.00 | D21: =$C$25/$C$28-($C$26/$C$28*'Oculto EcuS'!C21) -> 2.86 | E21: 20 | F21: 15.43 | G21: =$E$27*'Oculto EcuS'!B21 -> 18.00 | H21: 17.14285714 | I21: 1.64 | J21: 45.00 | K21: 9.98 | Y21: 19 | Z21: 0.90 | AA21: 0.10 | AB21: 54.00 | AC21: 5.00 | AD21: 17.65 | AE21: 55.76 | AF21: 64.41 | AG21: 35.29 | AI21: 19 | AJ21: 0.90 | AK21: 0.10 | AL21: 45.00 | AM21: 4.00 | AN21: 45.00 | AO21: 5.00 | AS21: 1.8 | AT21: 19 | AU21: 0.10 | AV21: 0.90 | AW21: 90.00 | AX21: 0.30 | AY21: 33.3 | AZ21: 1.80 | BA21: 30.00 | BB21: 2.0 | BC21: 60.00 | BD21: 1.41 | BH21: 19 | BI21: 0.90 | BJ21: 45.00 | BK21: 4.00 | BL21: 25.00 | BM21: 18.00 | BN21: =$BM$27*'Oculto EcuS'!BI21 -> 18.00 | BO21: 20.00 | BP21: 1.64 | BQ21: 45.00 | BR21: 11.11 | BU21: 19 | BV21: 0.90 | BW21: 0.10 | BX21: 22.50 | BY21: 2.50 | BZ21: 12.50 | CA21: 23.75 | CB21: 23.75 | CC21: 12.50 | CF21: 19 | CG21: 0.90 | CH21: 0.10 | CI21: 67.50 | CJ21: 5.00 | CK21: 67.50 | CL21: 7.50
A22: 20 | B22: 0.95 | C22: 47.50 | D22: =$C$25/$C$28-($C$26/$C$28*'Oculto EcuS'!C22) -> 1.43 | E22: 20 | F22: 16.29 | G22: =$E$27*'Oculto EcuS'!B22 -> 19.00 | H22: 17.14285714 | I22: 1.72 | J22: 47.50 | K22: 9.63 | Y22: 20 | Z22: 0.95 | AA22: 0.05 | AB22: 57.00 | AC22: 2.50 | AD22: 17.65 | AE22: 57.88 | AF22: 66.03 | AG22: 35.29 | AI22: 20 | AJ22: 0.95 | AK22: 0.05 | AL22: 47.50 | AM22: 2.00 | AN22: 47.50 | AO22: 2.50 | AS22: 1.9 | AT22: 20 | AU22: 0.05 | AV22: 0.95 | AW22: 95.00 | AX22: 0.15 | AY22: 33.3 | AZ22: 1.90 | BA22: 31.67 | BB22: 2.0 | BC22: 63.33 | BD22: 1.36 | BH22: 20 | BI22: 0.95 | BJ22: 47.50 | BK22: 2.00 | BL22: 25.00 | BM22: 19.00 | BN22: =$BM$27*'Oculto EcuS'!BI22 -> 19.00 | BO22: 20.00 | BP22: 1.72 | BQ22: 47.50 | BR22: 10.53 | BU22: 20 | BV22: 0.95 | BW22: 0.05 | BX22: 23.75 | BY22: 1.25 | BZ22: 12.50 | CA22: 24.38 | CB22: 24.38 | CC22: 12.50 | CF22: 20 | CG22: 0.95 | CH22: 0.05 | CI22: 71.25 | CJ22: 2.50 | CK22: 71.25 | CL22: 3.75
A23: 21 | B23: 1.00 | C23: 50.00 | D23: =$C$25/$C$28-($C$26/$C$28*'Oculto EcuS'!C23) -> 0 | E23: 20 | F23: =$F$27*B23 -> 17.14 | G23: =$E$27*'Oculto EcuS'!B23 -> 20.00 | H23: 17.14285714 | I23: 1.8 | J23: 50.00 | K23: 9.31 | Y23: 21 | Z23: 1.00 | AA23: 0 | AB23: 60.00 | AC23: 0 | AD23: 17.65 | AE23: 60.00 | AF23: 67.65 | AG23: 35.29 | AI23: 21 | AJ23: 1.00 | AK23: 0 | AL23: 50.00 | AM23: 0 | AN23: =IF($AM$26<$AL$26,(($AM$31-AO23)/($AK$33)),($AL$29*AJ23)) -> 50.00 | AO23: =$AM$31*AK23 -> 0 | AS23: 2 | AT23: 21 | AU23: 0 | AV23: 1.00 | AW23: 100.00 | AX23: 0 | AY23: 33.3 | AZ23: 2.00 | BA23: 33.33 | BB23: 2.0 | BC23: 66.67 | BD23: 1.31 | BH23: 21 | BI23: 1.00 | BJ23: 50.00 | BK23: 0 | BL23: 25.00 | BM23: 20.00 | BN23: =$BM$27*'Oculto EcuS'!BI23 -> 20.00 | BO23: 20.00 | BP23: 1.8 | BQ23: 50.00 | BR23: 10.00 | BU23: 21 | BV23: 1.00 | BW23: 0 | BX23: 25.00 | BY23: 0 | BZ23: 12.50 | CA23: 25.00 | CB23: 25.00 | CC23: 12.50 | CF23: 21 | CG23: 1.00 | CH23: 0 | CI23: 75.00 | CJ23: 0 | CK23: 75.00 | CL23: 0
B25: m | C25: ='Cobb-Douglas EcuS'!$C$6 -> 200.00 | E25: x1 | F25: x2 | AA25: m | AB25: ='CompPerf EcuS'!C6 -> 300 | AD25: COTA CURVA DE INDIFERENCIA | AJ25: m | AK25: ='SustPerf EcuS'!C6 -> 200 | AL25: p1<p2 | AU25: m | AV25: p1 | AW25: x1 | AX25: p2 | AY25: x2 | AZ25: k | BA25: x1* | BB25: x2* | BI25: m | BJ25: ='Min Cobb-Douglas'!C6 -> 200.00 | BL25: x1 | BM25: x2 | BW25: m | BX25: ='Min CompPerf'!C6 -> 100 | BZ25: COTA CURVA DE INDIFERENCIA | CG25: m | CH25: ='Min SustPerf'!C6 -> 300 | CI25: p1<p2
B26: p1 | C26: ='Cobb-Douglas EcuS'!$D$6 -> 4 | E26: ='Cobb-Douglas EcuS'!$D$24 -> 0.4 | F26: ='Cobb-Douglas EcuS'!$F$24 -> 0.6 | AA26: p1 | AB26: ='CompPerf EcuS'!D6 -> 5 | AC26: X1 | AD26: =AB23 -> 60.00 | AE26: =AB55 -> 60.00 | AF26: =AB87 -> 60.00 | AJ26: X1 | AK26: =AK25/AK29 -> 50.00 | AL26: =AK29 -> 4 | AM26: =AK33*AK30 -> 5 | AU26: ='Cuasilineales EcuS'!C6 -> 300.0 | AV26: ='Cuasilineales EcuS'!D6 -> 3.0 | AW26: =BA26 -> 33.3 | AX26: ='Cuasilineales EcuS'!F6 -> 100.0 | AY26: =(AU26/AX26)-(AW26/AX26) -> 2.7 | AZ26: =LN(BA26)+BB26 -> 5.5 | BA26: =AX26/AV26 -> 33.3 | BB26: =(AU26/AX26)-1 -> 2.0 | BI26: p1 | BJ26: ='Min Cobb-Douglas'!D6 -> 4 | BL26: =BJ27 -> 0.5 | BM26: =1-BL26 -> 0.5 | BW26: p1 | BX26: ='Min CompPerf'!D6 -> 4 | BY26: X1 | BZ26: =BX23 -> 25.00 | CA26: =BX55 -> 25.00 | CB26: =BX87 -> 25.00 | CG26: X1 | CH26: =IF(CI26<CJ26,CH25/CH29,0) -> 75.00 | CI26: =CH29 -> 4 | CJ26: =CH33*CH30 -> 6
B27: alpha | C27: ='Cobb-Douglas EcuS'!$D$24 -> 0.4 | E27: =C27*C25/C26 -> 20.00 | F27: =(1-C27)*C25/C28 -> 17.14 | AA27: p2 | AB27: ='CompPerf EcuS'!F6 -> 6 | AC27: X2 | AD27: =AC3 -> 50.00 | AE27: =AC35 -> 50.00 | AF27: =AC67 -> 50.00 | AJ27: X2 | AK27: =AK25/AK30 -> 40.00 | BI27: alpha | BJ27: ='Min Cobb-Douglas'!D24 -> 0.5 | BL27: =BJ27*BJ25/BJ26 -> 25.00 | BM27: =(1-BJ27)*BJ25/BJ28 -> 20.00 | BW27: p2 | BX27: ='Min CompPerf'!F6 -> 4 | BY27: X2 | BZ27: =BY3 -> 25.00 | CA27: =BY35 -> 25.00 | CB27: =BY67 -> 25.00 | CG27: X2 | CH27: =IF(CI26<CJ26,0,CH25/CH30) -> 0
B28: p2 | C28: ='Cobb-Douglas EcuS'!$F$6 -> 7 | F28: =(E27^(E26))*(F27^(F26)) -> 18.23315911 | AA28: x1 | AB28: =AB25/(AB26+(AB30*AB27)) -> 17.64705882 | AC28: MAX X1 | AD28: =MAX(AD26:AF26) -> 60.00 | AE28: MAX X2 | AF28: =MAX(AD27:AF27) -> 50.00 | AJ28: K | AK28: =AM31 -> 50 | AL28: x1 | AM28: x2 | AS28: CUASILINEALES FINAL | AW28: Recta Presupuestaria | BC28: Curva de Indiferencia | BI28: p2 | BJ28: ='Min Cobb-Douglas'!F6 -> 5 | BM28: =(BL27^(BL26))*(BM27^(BM26)) -> 22.36067977 | BW28: x1 | BX28: =BX25/(BX26+BX30*BX27) -> 12.5 | BY28: MAX X1 | BZ28: =MAX(BZ26:CB26) -> 25.00 | CA28: MAX X2 | CB28: =MAX(BZ27:CB27) -> 25.00 | CG28: K | CH28: =CH26+CH27 -> 75.00 | CI28: x1 | CJ28: x2
AA29: x2 | AB29: =(AB30*AB25)/(AB26+(AB30*AB27)) -> 35.29411765 | AJ29: P1 | AK29: ='SustPerf EcuS'!$D$6 -> 4 | AL29: =AK25/AK29 -> 50 | AM29: =AK25/AK30 -> 40 | AS29: Unidades | AT29: Unidades | AU29: ponderador | AV29: ponderador | AW29: x1 | AX29: x2 | AY29: x1lin | BA29: x2lin | BC29: x1 | BD29: x2 | BW29: x2 | BX29: =BX30*BX25/(BX26+BX30*BX27) -> 12.5 | CG29: P1 | CH29: ='Min SustPerf'!D6 -> 4 | CI29: =CH25/CH29 -> 75 | CJ29: =CH25/CH30 -> 50
A30: COBB-DOUGLAS 2 | C30: Recta Presupuestaria | J30: Curva de Indiferencia | AA30: relacion | AB30: ='CompPerf EcuS'!G9 -> 2 | AJ30: P2 | AK30: ='SustPerf EcuS'!$F$6 -> 5 | AL30: =AK25/AK29 -> 50 | AM30: =AK25/(AK30*(1/AK33)) -> 40 | AS30: 0.01 | AT30: 1 | AU30: 1.00 | AV30: 0 | AW30: =($AU$53/$AV$53)*AV30 -> 0 | AX30: =($AU$53/$AX$53)*AU30 -> 3.00 | AY30: =$BA$53 -> 33.3 | AZ30: =$BB$53*AV30 -> 0 | BA30: =$BA$53*AV30 -> 0 | BB30: =$BB$53 -> 2.0 | BC30: =$BA$53*AS30 -> 0.33 | BD30: =$AZ$26-(LN(BC30)) -> 6.61 | BH30: COBB-DOUGLAS 2 | BJ30: Recta Presupuestaria | BQ30: Curva de Indiferencia | BW30: relacion | BX30: ='Min CompPerf'!G9 -> 1 | CG30: P2 | CH30: ='Min SustPerf'!F6 -> 6 | CI30: =CH25/CH29 -> 75 | CJ30: =CH25/(CH30*(1/CH33)) -> 50
A31: Unidades | B31: ponderador | C31: x1 | D31: x2 | E31: x3lin | G31: x4lin | I31: Cota | J31: x1 | K31: x2 | AJ31: X1* | AK31: =IF(AL26<=AM26,AL23,0) -> 50 | AM31: =IF(AL26<AM26,AL29,AM29) -> 50 | AS31: 0.1 | AT31: 2 | AU31: 0.95 | AV31: 0.05 | AW31: =($AU$53/$AV$53)*AV31 -> 5.00 | AX31: =($AU$53/$AX$53)*AU31 -> 2.85 | AY31: =$BA$53 -> 33.3 | AZ31: =$BB$53*AV31 -> 0.10 | BA31: =$BA$53*AV31 -> 1.67 | BB31: =$BB$53 -> 2.0 | BC31: =$BA$53*AS31 -> 3.33 | BD31: =$AZ$53-(LN(BC31)) -> 4.30 | BH31: Unidades | BI31: ponderador | BJ31: x1 | BK31: x2 | BL31: x3lin | BN31: x4lin | BP31: Cota | BQ31: x1 | BR31: x2 | BW31: k | BX31: =MIN(BX28,(BX29/2)) -> 6.25 | CG31: X1* | CH31: =IF(CI26<=CJ26,CI23,0) -> 75 | CJ31: =IF(CI26<CJ26,CI29,CJ29) -> 75
A32: 1 | B32: 0 | C32: =$C$54/$C$55*B32 -> 0 | D32: =$C$54/$C$57-($C$55/$C$57*'Oculto EcuS'!C32) -> 28.57 | E32: =$E$56 -> 20 | F32: =$F$56*B32 -> 0 | G32: =$E$56*'Oculto EcuS'!B32 -> 0 | H32: =$F$56 -> 17.14285714 | AJ32: X2* | AK32: =IF(AL26>AM26,AM3,0) -> 0 | AS32: 0.2 | AT32: 3 | AU32: 0.90 | AV32: 0.10 | AW32: 10.00 | AX32: 2.70 | AY32: 33.3 | AZ32: 0.20 | BA32: 3.33 | BB32: 2.0 | BC32: 6.67 | BD32: 3.61 | BH32: 1 | BI32: 0 | BJ32: =$BJ$54/$BJ$55*BI32 -> 0 | BK32: =$BJ$54/$BJ$57-$BJ$55/$BJ$57*BJ32 -> 40.00 | BL32: =$BL$56 -> 25.00 | BM32: =$BM$56*BI32 -> 0 | BN32: =$BL$56*'Oculto EcuS'!BI32 -> 0 | BO32: =$BM$56 -> 20.00 | CG32: X2* | CH32: =IF(CI26>CJ26,CJ3,0) -> 0
A33: 2 | B33: 0.05 | C33: =$C$54/$C$55*B33 -> 2.50 | D33: =$C$54/$C$57-($C$55/$C$57*'Oculto EcuS'!C33) -> 27.14 | E33: =$E$56 -> 20 | F33: =$F$56*B33 -> 0.86 | G33: =$E$56*'Oculto EcuS'!B33 -> 1.00 | H33: =$F$56 -> 17.14285714 | I33: 0.28 | J33: =C33 -> 2.50 | K33: =($F$57/(J33^($E$55)))^(1/$F$55) -> 68.57 | Y33: COMP. PERFECTOS 2 | AB33: Recta Presupuestaria | AD33: Curva de Indiferencia | AJ33: Rel. 1 a: | AK33: ='SustPerf EcuS'!G9 -> 1.0 | AS33: 0.3 | AT33: 4 | AU33: 0.85 | AV33: 0.15 | AW33: 15.00 | AX33: 2.55 | AY33: 33.3 | AZ33: 0.30 | BA33: 5.00 | BB33: 2.0 | BC33: 10.00 | BD33: 3.20 | BH33: 2 | BI33: 0.05 | BJ33: =$BJ$54/$BJ$55*BI33 -> 2.50 | BK33: =$BJ$54/$BJ$57-$BJ$55/$BJ$57*BJ33 -> 38.00 | BL33: =$BL$56 -> 25.00 | BM33: =$BM$56*BI33 -> 1.00 | BN33: =$BL$56*'Oculto EcuS'!BI33 -> 1.25 | BO33: =$BM$56 -> 20.00 | BP33: 0.28 | BQ33: =BJ33 -> 2.50 | BR33: =($BM$57/(BQ33^($BL$55)))^(1/$BM$55) -> 200.00 | BU33: COMP. PERFECTOS 2 | BX33: Recta Presupuestaria | BZ33: Curva de Indiferencia | CG33: Rel. 1 a: | CH33: ='Min SustPerf'!G9 -> 1.0
A34: 3 | B34: 0.10 | C34: 5.00 | D34: =$C$54/$C$57-($C$55/$C$57*'Oculto EcuS'!C34) -> 25.71 | E34: 20 | F34: 1.71 | G34: =$E$56*'Oculto EcuS'!B34 -> 2.00 | H34: 17.14285714 | I34: 0.36 | J34: =C34 -> 5.00 | K34: =($F$57/(J34^($E$55)))^(1/$F$55) -> 43.20 | Y34: Unidades | Z34: ponderador | AB34: x1 | AC34: x2 | AD34: vertice | AE34: x1line | AF34: x2line | AS34: 0.4 | AT34: 5 | AU34: 0.80 | AV34: 0.20 | AW34: 20.00 | AX34: 2.40 | AY34: 33.3 | AZ34: 0.40 | BA34: 6.67 | BB34: 2.0 | BC34: 13.33 | BD34: 2.92 | BH34: 3 | BI34: 0.10 | BJ34: 5.00 | BK34: 36.00 | BL34: 25.00 | BM34: 2.00 | BN34: =$BL$56*'Oculto EcuS'!BI34 -> 2.50 | BO34: 20.00 | BP34: 0.36 | BQ34: =BJ34 -> 5.00 | BR34: =($BM$57/(BQ34^($BL$55)))^(1/$BM$55) -> 100.00 | BU34: Unidades | BV34: ponderador | BX34: x1 | BY34: x2 | BZ34: vertice | CA34: x1line | CB34: x2line
A35: 4 | B35: 0.15 | C35: 7.50 | D35: =$C$54/$C$57-($C$55/$C$57*'Oculto EcuS'!C35) -> 24.29 | E35: 20 | F35: 2.57 | G35: =$E$56*'Oculto EcuS'!B35 -> 3.00 | H35: 17.14285714 | I35: 0.44 | J35: 7.50 | K35: 32.97 | Y35: 1 | Z35: 0 | AA35: 1.00 | AB35: =$AB$57/$AB$58*Z35 -> 0 | AC35: =$AB$25/$AB$27*AA35 -> 50.00 | AD35: =AB60 -> 17.65 | AE35: =AD35+(($AD$28-AD35)*Z35) -> 17.65 | AF35: =AG35+(($AF$28-AD35)*Z35) -> 35.29 | AG35: =$AB$61 -> 35.29 | AS35: 0.5 | AT35: 6 | AU35: 0.75 | AV35: 0.25 | AW35: 25.00 | AX35: 2.25 | AY35: 33.3 | AZ35: 0.50 | BA35: 8.33 | BB35: 2.0 | BC35: 16.67 | BD35: 2.69 | BH35: 4 | BI35: 0.15 | BJ35: 7.50 | BK35: 34.00 | BL35: 25.00 | BM35: 3.00 | BN35: =$BL$56*'Oculto EcuS'!BI35 -> 3.75 | BO35: 20.00 | BP35: 0.44 | BQ35: 7.50 | BR35: 66.67 | BU35: 1 | BV35: 0 | BW35: 1.00 | BX35: =$BX$57/$BX$58*BV35 -> 0 | BY35: =$BX$57/$BX$59*BW35 -> 25.00 | BZ35: =BX60 -> 12.50 | CA35: =BZ35+(($BZ$28-BZ35)*BV35) -> 12.50 | CB35: =CC35+(($CB$28-BZ35)*BV35) -> 12.50 | CC35: =$BX$61 -> 12.50
A36: 5 | B36: 0.20 | C36: 10.00 | D36: =$C$54/$C$57-($C$55/$C$57*'Oculto EcuS'!C36) -> 22.86 | E36: 20 | F36: 3.43 | G36: =$E$56*'Oculto EcuS'!B36 -> 4.00 | H36: 17.14285714 | I36: 0.52 | J36: 10.00 | K36: 27.21 | Y36: 2 | Z36: 0.05 | AA36: 0.95 | AB36: =$AB$57/$AB$58*Z36 -> 3.00 | AC36: =$AB$25/$AB$27*AA36 -> 47.50 | AD36: =AD35 -> 17.65 | AE36: =AD36+(($AD$28-AD36)*Z36) -> 19.76 | AF36: =AG36+(($AF$28-AD36)*Z36) -> 36.91 | AG36: =$AB$61 -> 35.29 | AI36: SUSTITUTOS PERFECTOS | AL36: Recta Presupuestaria | AN36: Curva de Indiferencia | AS36: 0.6 | AT36: 7 | AU36: 0.70 | AV36: 0.30 | AW36: 30.00 | AX36: 2.10 | AY36: 33.3 | AZ36: 0.60 | BA36: 10.00 | BB36: 2.0 | BC36: 20.00 | BD36: 2.51 | BH36: 5 | BI36: 0.20 | BJ36: 10.00 | BK36: 32.00 | BL36: 25.00 | BM36: 4.00 | BN36: =$BL$56*'Oculto EcuS'!BI36 -> 5.00 | BO36: 20.00 | BP36: 0.52 | BQ36: 10.00 | BR36: 50.00 | BU36: 2 | BV36: 0.05 | BW36: 0.95 | BX36: =$BX$57/$BX$58*BV36 -> 1.25 | BY36: =$BX$57/$BX$59*BW36 -> 23.75 | BZ36: =BZ35 -> 12.50 | CA36: =BZ36+(($BZ$28-BZ36)*BV36) -> 13.13 | CB36: =CC36+(($CB$28-BZ36)*BV36) -> 13.13 | CC36: =$BX$61 -> 12.50 | CF36: SUSTITUTOS PERFECTOS | CI36: Recta Presupuestaria | CK36: Curva de Indiferencia
A37: 6 | B37: 0.25 | C37: 12.50 | D37: =$C$54/$C$57-($C$55/$C$57*'Oculto EcuS'!C37) -> 21.43 | E37: 20 | F37: 4.29 | G37: =$E$56*'Oculto EcuS'!B37 -> 5.00 | H37: 17.14285714 | I37: 0.6 | J37: 12.50 | K37: 23.45 | Y37: 3 | Z37: 0.10 | AA37: 0.90 | AB37: 6.00 | AC37: 45.00 | AD37: =AD36 -> 17.65 | AE37: 21.88 | AF37: 38.53 | AG37: 35.29 | AI37: Unidades | AJ37: ponderador | AL37: x1 | AM37: x2 | AN37: x1lin | AO37: sip1>p2 | AS37: 0.7 | AT37: 8 | AU37: 0.65 | AV37: 0.35 | AW37: 35.00 | AX37: 1.95 | AY37: 33.3 | AZ37: 0.70 | BA37: 11.67 | BB37: 2.0 | BC37: 23.33 | BD37: 2.36 | BH37: 6 | BI37: 0.25 | BJ37: 12.50 | BK37: 30.00 | BL37: 25.00 | BM37: 5.00 | BN37: =$BL$56*'Oculto EcuS'!BI37 -> 6.25 | BO37: 20.00 | BP37: 0.6 | BQ37: 12.50 | BR37: 40.00 | BU37: 3 | BV37: 0.10 | BW37: 0.90 | BX37: 2.50 | BY37: 22.50 | BZ37: =BZ36 -> 12.50 | CA37: 13.75 | CB37: 13.75 | CC37: 12.50 | CF37: Unidades | CG37: ponderador | CI37: x1 | CJ37: x2 | CK37: x1lin | CL37: sip1>p2
A38: 7 | B38: 0.30 | C38: 15.00 | D38: =$C$54/$C$57-($C$55/$C$57*'Oculto EcuS'!C38) -> 20.00 | E38: 20 | F38: 5.14 | G38: =$E$56*'Oculto EcuS'!B38 -> 6.00 | H38: 17.14285714 | I38: 0.68 | J38: 15.00 | K38: 20.77 | Y38: 4 | Z38: 0.15 | AA38: 0.85 | AB38: 9.00 | AC38: 42.50 | AD38: 17.65 | AE38: 24.00 | AF38: 40.15 | AG38: 35.29 | AI38: 1 | AJ38: 0 | AK38: 1.00 | AL38: =$AK$61*AJ38 -> 0 | AM38: =$AK$62*AK38 -> 40.00 | AN38: =IF($AM$61<$AL$61,(($AM$66-AO38)/($AK$68)),($AL$64*AJ38)) -> 0 | AO38: =$AM$66*AK38 -> 50.00 | AS38: 0.8 | AT38: 9 | AU38: 0.60 | AV38: 0.40 | AW38: 40.00 | AX38: 1.80 | AY38: 33.3 | AZ38: 0.80 | BA38: 13.33 | BB38: 2.0 | BC38: 26.67 | BD38: 2.22 | BH38: 7 | BI38: 0.30 | BJ38: 15.00 | BK38: 28.00 | BL38: 25.00 | BM38: 6.00 | BN38: =$BL$56*'Oculto EcuS'!BI38 -> 7.50 | BO38: 20.00 | BP38: 0.68 | BQ38: 15.00 | BR38: 33.33 | BU38: 4 | BV38: 0.15 | BW38: 0.85 | BX38: 3.75 | BY38: 21.25 | BZ38: 12.50 | CA38: 14.38 | CB38: 14.38 | CC38: 12.50 | CF38: 1 | CG38: 0 | CH38: 1.00 | CI38: =$CH$60/$CH$64*CG38 -> 0 | CJ38: =$CH$60/$CH$65-(($CH$64/$CH$65)*CI38) -> 50.00 | CK38: =MAX($CI$64:$CJ$64)*CG38 -> 0 | CL38: =$CH$63*$CH$68-CK38*$CH$68 -> 75.00
A39: 8 | B39: 0.35 | C39: 17.50 | D39: =$C$54/$C$57-($C$55/$C$57*'Oculto EcuS'!C39) -> 18.57 | E39: 20 | F39: 6.00 | G39: =$E$56*'Oculto EcuS'!B39 -> 7.00 | H39: 17.14285714 | I39: 0.76 | J39: 17.50 | K39: 18.74 | Y39: 5 | Z39: 0.20 | AA39: 0.80 | AB39: 12.00 | AC39: 40.00 | AD39: 17.65 | AE39: 26.12 | AF39: 41.76 | AG39: 35.29 | AI39: 2 | AJ39: 0.05 | AK39: 0.95 | AL39: =$AK$61*AJ39 -> 2.50 | AM39: =$AK$62*AK39 -> 38.00 | AN39: =IF($AM$61<$AL$61,(($AM$66-AO39)/($AK$68)),($AL$64*AJ39)) -> 2.50 | AO39: 47.50 | AS39: 0.9 | AT39: 10 | AU39: 0.55 | AV39: 0.45 | AW39: 45.00 | AX39: 1.65 | AY39: 33.3 | AZ39: 0.90 | BA39: 15.00 | BB39: 2.0 | BC39: 30.00 | BD39: 2.11 | BH39: 8 | BI39: 0.35 | BJ39: 17.50 | BK39: 26.00 | BL39: 25.00 | BM39: 7.00 | BN39: =$BL$56*'Oculto EcuS'!BI39 -> 8.75 | BO39: 20.00 | BP39: 0.76 | BQ39: 17.50 | BR39: 28.57 | BU39: 5 | BV39: 0.20 | BW39: 0.80 | BX39: 5.00 | BY39: 20.00 | BZ39: 12.50 | CA39: 15.00 | CB39: 15.00 | CC39: 12.50 | CF39: 2 | CG39: 0.05 | CH39: 0.95 | CI39: =$CH$60/$CH$64*CG39 -> 3.75 | CJ39: =$CH$60/$CH$65-(($CH$64/$CH$65)*CI39) -> 47.50 | CK39: =MAX($CI$64:$CJ$64)*CG39 -> 3.75 | CL39: =$CH$63*$CH$68-CK39*$CH$68 -> 71.25
A40: 9 | B40: 0.40 | C40: 20.00 | D40: =$C$54/$C$57-($C$55/$C$57*'Oculto EcuS'!C40) -> 17.14 | E40: 20 | F40: 6.86 | G40: =$E$56*'Oculto EcuS'!B40 -> 8.00 | H40: 17.14285714 | I40: 0.84 | J40: 20.00 | K40: 17.14 | Y40: 6 | Z40: 0.25 | AA40: 0.75 | AB40: 15.00 | AC40: 37.50 | AD40: 17.65 | AE40: 28.24 | AF40: 43.38 | AG40: 35.29 | AI40: 3 | AJ40: 0.10 | AK40: 0.90 | AL40: 5.00 | AM40: 36.00 | AN40: 5.00 | AO40: 45.00 | AS40: 1 | AT40: 11 | AU40: 0.50 | AV40: 0.50 | AW40: 50.00 | AX40: 1.50 | AY40: 33.3 | AZ40: 1.00 | BA40: 16.67 | BB40: 2.0 | BC40: 33.33 | BD40: 2.00 | BH40: 9 | BI40: 0.40 | BJ40: 20.00 | BK40: 24.00 | BL40: 25.00 | BM40: 8.00 | BN40: =$BL$56*'Oculto EcuS'!BI40 -> 10.00 | BO40: 20.00 | BP40: 0.84 | BQ40: 20.00 | BR40: 25.00 | BU40: 6 | BV40: 0.25 | BW40: 0.75 | BX40: 6.25 | BY40: 18.75 | BZ40: 12.50 | CA40: 15.63 | CB40: 15.63 | CC40: 12.50 | CF40: 3 | CG40: 0.10 | CH40: 0.90 | CI40: 7.50 | CJ40: 45.00 | CK40: 7.50 | CL40: 67.50
A41: 10 | B41: 0.45 | C41: 22.50 | D41: =$C$54/$C$57-($C$55/$C$57*'Oculto EcuS'!C41) -> 15.71 | E41: 20 | F41: 7.71 | G41: =$E$56*'Oculto EcuS'!B41 -> 9.00 | H41: 17.14285714 | I41: 0.92 | J41: 22.50 | K41: 15.85 | Y41: 7 | Z41: 0.30 | AA41: 0.70 | AB41: 18.00 | AC41: 35.00 | AD41: 17.65 | AE41: 30.35 | AF41: 45.00 | AG41: 35.29 | AI41: 4 | AJ41: 0.15 | AK41: 0.85 | AL41: 7.50 | AM41: 34.00 | AN41: 7.50 | AO41: 42.50 | AS41: 1.1 | AT41: 12 | AU41: 0.45 | AV41: 0.55 | AW41: 55.00 | AX41: 1.35 | AY41: 33.3 | AZ41: 1.10 | BA41: 18.33 | BB41: 2.0 | BC41: 36.67 | BD41: 1.90 | BH41: 10 | BI41: 0.45 | BJ41: 22.50 | BK41: 22.00 | BL41: 25.00 | BM41: 9.00 | BN41: =$BL$56*'Oculto EcuS'!BI41 -> 11.25 | BO41: 20.00 | BP41: 0.92 | BQ41: 22.50 | BR41: 22.22 | BU41: 7 | BV41: 0.30 | BW41: 0.70 | BX41: 7.50 | BY41: 17.50 | BZ41: 12.50 | CA41: 16.25 | CB41: 16.25 | CC41: 12.50 | CF41: 4 | CG41: 0.15 | CH41: 0.85 | CI41: 11.25 | CJ41: 42.50 | CK41: 11.25 | CL41: 63.75
A42: 11 | B42: 0.50 | C42: 25.00 | D42: =$C$54/$C$57-($C$55/$C$57*'Oculto EcuS'!C42) -> 14.29 | E42: 20 | F42: 8.57 | G42: =$E$56*'Oculto EcuS'!B42 -> 10.00 | H42: 17.14285714 | I42: 1 | J42: 25.00 | K42: 14.77 | Y42: 8 | Z42: 0.35 | AA42: 0.65 | AB42: 21.00 | AC42: 32.50 | AD42: 17.65 | AE42: 32.47 | AF42: 46.62 | AG42: 35.29 | AI42: 5 | AJ42: 0.20 | AK42: 0.80 | AL42: 10.00 | AM42: 32.00 | AN42: 10.00 | AO42: 40.00 | AS42: 1.2 | AT42: 13 | AU42: 0.40 | AV42: 0.60 | AW42: 60.00 | AX42: 1.20 | AY42: 33.3 | AZ42: 1.20 | BA42: 20.00 | BB42: 2.0 | BC42: 40.00 | BD42: 1.82 | BH42: 11 | BI42: 0.50 | BJ42: 25.00 | BK42: 20.00 | BL42: 25.00 | BM42: 10.00 | BN42: =$BL$56*'Oculto EcuS'!BI42 -> 12.50 | BO42: 20.00 | BP42: 1 | BQ42: 25.00 | BR42: 20.00 | BU42: 8 | BV42: 0.35 | BW42: 0.65 | BX42: 8.75 | BY42: 16.25 | BZ42: 12.50 | CA42: 16.88 | CB42: 16.88 | CC42: 12.50 | CF42: 5 | CG42: 0.20 | CH42: 0.80 | CI42: 15.00 | CJ42: 40.00 | CK42: 15.00 | CL42: 60.00
A43: 12 | B43: 0.55 | C43: 27.50 | D43: =$C$54/$C$57-($C$55/$C$57*'Oculto EcuS'!C43) -> 12.86 | E43: 20 | F43: 9.43 | G43: =$E$56*'Oculto EcuS'!B43 -> 11.00 | H43: 17.14285714 | I43: 1.08 | J43: 27.50 | K43: 13.86 | Y43: 9 | Z43: 0.40 | AA43: 0.60 | AB43: 24.00 | AC43: 30.00 | AD43: 17.65 | AE43: 34.59 | AF43: 48.24 | AG43: 35.29 | AI43: 6 | AJ43: 0.25 | AK43: 0.75 | AL43: 12.50 | AM43: 30.00 | AN43: 12.50 | AO43: 37.50 | AS43: 1.3 | AT43: 14 | AU43: 0.35 | AV43: 0.65 | AW43: 65.00 | AX43: 1.05 | AY43: 33.3 | AZ43: 1.30 | BA43: 21.67 | BB43: 2.0 | BC43: 43.33 | BD43: 1.74 | BH43: 12 | BI43: 0.55 | BJ43: 27.50 | BK43: 18.00 | BL43: 25.00 | BM43: 11.00 | BN43: =$BL$56*'Oculto EcuS'!BI43 -> 13.75 | BO43: 20.00 | BP43: 1.08 | BQ43: 27.50 | BR43: 18.18 | BU43: 9 | BV43: 0.40 | BW43: 0.60 | BX43: 10.00 | BY43: 15.00 | BZ43: 12.50 | CA43: 17.50 | CB43: 17.50 | CC43: 12.50 | CF43: 6 | CG43: 0.25 | CH43: 0.75 | CI43: 18.75 | CJ43: 37.50 | CK43: 18.75 | CL43: 56.25
A44: 13 | B44: 0.60 | C44: 30.00 | D44: =$C$54/$C$57-($C$55/$C$57*'Oculto EcuS'!C44) -> 11.43 | E44: 20 | F44: 10.29 | G44: =$E$56*'Oculto EcuS'!B44 -> 12.00 | H44: 17.14285714 | I44: 1.16 | J44: 30.00 | K44: 13.08 | Y44: 10 | Z44: 0.45 | AA44: 0.55 | AB44: 27.00 | AC44: 27.50 | AD44: 17.65 | AE44: 36.71 | AF44: 49.85 | AG44: 35.29 | AI44: 7 | AJ44: 0.30 | AK44: 0.70 | AL44: 15.00 | AM44: 28.00 | AN44: 15.00 | AO44: 35.00 | AS44: 1.4 | AT44: 15 | AU44: 0.30 | AV44: 0.70 | AW44: 70.00 | AX44: 0.90 | AY44: 33.3 | AZ44: 1.40 | BA44: 23.33 | BB44: 2.0 | BC44: 46.67 | BD44: 1.66 | BH44: 13 | BI44: 0.60 | BJ44: 30.00 | BK44: 16.00 | BL44: 25.00 | BM44: 12.00 | BN44: =$BL$56*'Oculto EcuS'!BI44 -> 15.00 | BO44: 20.00 | BP44: 1.16 | BQ44: 30.00 | BR44: 16.67 | BU44: 10 | BV44: 0.45 | BW44: 0.55 | BX44: 11.25 | BY44: 13.75 | BZ44: 12.50 | CA44: 18.13 | CB44: 18.13 | CC44: 12.50 | CF44: 7 | CG44: 0.30 | CH44: 0.70 | CI44: 22.50 | CJ44: 35.00 | CK44: 22.50 | CL44: 52.50
A45: 14 | B45: 0.65 | C45: 32.50 | D45: =$C$54/$C$57-($C$55/$C$57*'Oculto EcuS'!C45) -> 10.00 | E45: 20 | F45: 11.14 | G45: =$E$56*'Oculto EcuS'!B45 -> 13.00 | H45: 17.14285714 | I45: 1.24 | J45: 32.50 | K45: 12.40 | Y45: 11 | Z45: 0.50 | AA45: 0.50 | AB45: 30.00 | AC45: 25.00 | AD45: 17.65 | AE45: 38.82 | AF45: 51.47 | AG45: 35.29 | AI45: 8 | AJ45: 0.35 | AK45: 0.65 | AL45: 17.50 | AM45: 26.00 | AN45: 17.50 | AO45: 32.50 | AS45: 1.5 | AT45: 16 | AU45: 0.25 | AV45: 0.75 | AW45: 75.00 | AX45: 0.75 | AY45: 33.3 | AZ45: 1.50 | BA45: 25.00 | BB45: 2.0 | BC45: 50.00 | BD45: 1.59 | BH45: 14 | BI45: 0.65 | BJ45: 32.50 | BK45: 14.00 | BL45: 25.00 | BM45: 13.00 | BN45: =$BL$56*'Oculto EcuS'!BI45 -> 16.25 | BO45: 20.00 | BP45: 1.24 | BQ45: 32.50 | BR45: 15.38 | BU45: 11 | BV45: 0.50 | BW45: 0.50 | BX45: 12.50 | BY45: 12.50 | BZ45: 12.50 | CA45: 18.75 | CB45: 18.75 | CC45: 12.50 | CF45: 8 | CG45: 0.35 | CH45: 0.65 | CI45: 26.25 | CJ45: 32.50 | CK45: 26.25 | CL45: 48.75
A46: 15 | B46: 0.70 | C46: 35.00 | D46: =$C$54/$C$57-($C$55/$C$57*'Oculto EcuS'!C46) -> 8.57 | E46: 20 | F46: 12.00 | G46: =$E$56*'Oculto EcuS'!B46 -> 14.00 | H46: 17.14285714 | I46: 1.32 | J46: 35.00 | K46: 11.80 | Y46: 12 | Z46: 0.55 | AA46: 0.45 | AB46: 33.00 | AC46: 22.50 | AD46: 17.65 | AE46: 40.94 | AF46: 53.09 | AG46: 35.29 | AI46: 9 | AJ46: 0.40 | AK46: 0.60 | AL46: 20.00 | AM46: 24.00 | AN46: 20.00 | AO46: 30.00 | AS46: 1.6 | AT46: 17 | AU46: 0.20 | AV46: 0.80 | AW46: 80.00 | AX46: 0.60 | AY46: 33.3 | AZ46: 1.60 | BA46: 26.67 | BB46: 2.0 | BC46: 53.33 | BD46: 1.53 | BH46: 15 | BI46: 0.70 | BJ46: 35.00 | BK46: 12.00 | BL46: 25.00 | BM46: 14.00 | BN46: =$BL$56*'Oculto EcuS'!BI46 -> 17.50 | BO46: 20.00 | BP46: 1.32 | BQ46: 35.00 | BR46: 14.29 | BU46: 12 | BV46: 0.55 | BW46: 0.45 | BX46: 13.75 | BY46: 11.25 | BZ46: 12.50 | CA46: 19.38 | CB46: 19.38 | CC46: 12.50 | CF46: 9 | CG46: 0.40 | CH46: 0.60 | CI46: 30.00 | CJ46: 30.00 | CK46: 30.00 | CL46: 45.00
A47: 16 | B47: 0.75 | C47: 37.50 | D47: =$C$54/$C$57-($C$55/$C$57*'Oculto EcuS'!C47) -> 7.14 | E47: 20 | F47: 12.86 | G47: =$E$56*'Oculto EcuS'!B47 -> 15.00 | H47: 17.14285714 | I47: 1.4 | J47: 37.50 | K47: 11.27 | Y47: 13 | Z47: 0.60 | AA47: 0.40 | AB47: 36.00 | AC47: 20.00 | AD47: 17.65 | AE47: 43.06 | AF47: 54.71 | AG47: 35.29 | AI47: 10 | AJ47: 0.45 | AK47: 0.55 | AL47: 22.50 | AM47: 22.00 | AN47: 22.50 | AO47: 27.50 | AS47: 1.7 | AT47: 18 | AU47: 0.15 | AV47: 0.85 | AW47: 85.00 | AX47: 0.45 | AY47: 33.3 | AZ47: 1.70 | BA47: 28.33 | BB47: 2.0 | BC47: 56.67 | BD47: 1.47 | BH47: 16 | BI47: 0.75 | BJ47: 37.50 | BK47: 10.00 | BL47: 25.00 | BM47: 15.00 | BN47: =$BL$56*'Oculto EcuS'!BI47 -> 18.75 | BO47: 20.00 | BP47: 1.4 | BQ47: 37.50 | BR47: 13.33 | BU47: 13 | BV47: 0.60 | BW47: 0.40 | BX47: 15.00 | BY47: 10.00 | BZ47: 12.50 | CA47: 20.00 | CB47: 20.00 | CC47: 12.50 | CF47: 10 | CG47: 0.45 | CH47: 0.55 | CI47: 33.75 | CJ47: 27.50 | CK47: 33.75 | CL47: 41.25
A48: 17 | B48: 0.80 | C48: 40.00 | D48: =$C$54/$C$57-($C$55/$C$57*'Oculto EcuS'!C48) -> 5.71 | E48: 20 | F48: 13.71 | G48: =$E$56*'Oculto EcuS'!B48 -> 16.00 | H48: 17.14285714 | I48: 1.48 | J48: 40.00 | K48: 10.80 | Y48: 14 | Z48: 0.65 | AA48: 0.35 | AB48: 39.00 | AC48: 17.50 | AD48: 17.65 | AE48: 45.18 | AF48: 56.32 | AG48: 35.29 | AI48: 11 | AJ48: 0.50 | AK48: 0.50 | AL48: 25.00 | AM48: 20.00 | AN48: 25.00 | AO48: 25.00 | AS48: 1.8 | AT48: 19 | AU48: 0.10 | AV48: 0.90 | AW48: 90.00 | AX48: 0.30 | AY48: 33.3 | AZ48: 1.80 | BA48: 30.00 | BB48: 2.0 | BC48: 60.00 | BD48: 1.41 | BH48: 17 | BI48: 0.80 | BJ48: 40.00 | BK48: 8.00 | BL48: 25.00 | BM48: 16.00 | BN48: =$BL$56*'Oculto EcuS'!BI48 -> 20.00 | BO48: 20.00 | BP48: 1.48 | BQ48: 40.00 | BR48: 12.50 | BU48: 14 | BV48: 0.65 | BW48: 0.35 | BX48: 16.25 | BY48: 8.75 | BZ48: 12.50 | CA48: 20.63 | CB48: 20.63 | CC48: 12.50 | CF48: 11 | CG48: 0.50 | CH48: 0.50 | CI48: 37.50 | CJ48: 25.00 | CK48: 37.50 | CL48: 37.50
A49: 18 | B49: 0.85 | C49: 42.50 | D49: =$C$54/$C$57-($C$55/$C$57*'Oculto EcuS'!C49) -> 4.29 | E49: 20 | F49: 14.57 | G49: =$E$56*'Oculto EcuS'!B49 -> 17.00 | H49: 17.14285714 | I49: 1.56 | J49: 42.50 | K49: 10.37 | Y49: 15 | Z49: 0.70 | AA49: 0.30 | AB49: 42.00 | AC49: 15.00 | AD49: 17.65 | AE49: 47.29 | AF49: 57.94 | AG49: 35.29 | AI49: 12 | AJ49: 0.55 | AK49: 0.45 | AL49: 27.50 | AM49: 18.00 | AN49: 27.50 | AO49: 22.50 | AS49: 1.9 | AT49: 20 | AU49: 0.05 | AV49: 0.95 | AW49: 95.00 | AX49: 0.15 | AY49: 33.3 | AZ49: 1.90 | BA49: 31.67 | BB49: 2.0 | BC49: 63.33 | BD49: 1.36 | BH49: 18 | BI49: 0.85 | BJ49: 42.50 | BK49: 6.00 | BL49: 25.00 | BM49: 17.00 | BN49: =$BL$56*'Oculto EcuS'!BI49 -> 21.25 | BO49: 20.00 | BP49: 1.56 | BQ49: 42.50 | BR49: 11.76 | BU49: 15 | BV49: 0.70 | BW49: 0.30 | BX49: 17.50 | BY49: 7.50 | BZ49: 12.50 | CA49: 21.25 | CB49: 21.25 | CC49: 12.50 | CF49: 12 | CG49: 0.55 | CH49: 0.45 | CI49: 41.25 | CJ49: 22.50 | CK49: 41.25 | CL49: 33.75
A50: 19 | B50: 0.90 | C50: 45.00 | D50: =$C$54/$C$57-($C$55/$C$57*'Oculto EcuS'!C50) -> 2.86 | E50: 20 | F50: 15.43 | G50: =$E$56*'Oculto EcuS'!B50 -> 18.00 | H50: 17.14285714 | I50: 1.64 | J50: 45.00 | K50: 9.98 | Y50: 16 | Z50: 0.75 | AA50: 0.25 | AB50: 45.00 | AC50: 12.50 | AD50: 17.65 | AE50: 49.41 | AF50: 59.56 | AG50: 35.29 | AI50: 13 | AJ50: 0.60 | AK50: 0.40 | AL50: 30.00 | AM50: 16.00 | AN50: 30.00 | AO50: 20.00 | AS50: 2 | AT50: 21 | AU50: 0 | AV50: 1.00 | AW50: 100.00 | AX50: =($AU$53/$AX$53)*AU50 -> 0 | AY50: 33.3 | AZ50: 2.00 | BA50: 33.33 | BB50: 2.0 | BC50: 66.67 | BD50: 1.31 | BH50: 19 | BI50: 0.90 | BJ50: 45.00 | BK50: 4.00 | BL50: 25.00 | BM50: 18.00 | BN50: =$BL$56*'Oculto EcuS'!BI50 -> 22.50 | BO50: 20.00 | BP50: 1.64 | BQ50: 45.00 | BR50: 11.11 | BU50: 16 | BV50: 0.75 | BW50: 0.25 | BX50: 18.75 | BY50: 6.25 | BZ50: 12.50 | CA50: 21.88 | CB50: 21.88 | CC50: 12.50 | CF50: 13 | CG50: 0.60 | CH50: 0.40 | CI50: 45.00 | CJ50: 20.00 | CK50: 45.00 | CL50: 30.00
A51: 20 | B51: 0.95 | C51: 47.50 | D51: =$C$54/$C$57-($C$55/$C$57*'Oculto EcuS'!C51) -> 1.43 | E51: 20 | F51: 16.29 | G51: =$E$56*'Oculto EcuS'!B51 -> 19.00 | H51: 17.14285714 | I51: 1.72 | J51: 47.50 | K51: 9.63 | Y51: 17 | Z51: 0.80 | AA51: 0.20 | AB51: 48.00 | AC51: 10.00 | AD51: 17.65 | AE51: 51.53 | AF51: 61.18 | AG51: 35.29 | AI51: 14 | AJ51: 0.65 | AK51: 0.35 | AL51: 32.50 | AM51: 14.00 | AN51: 32.50 | AO51: 17.50 | BH51: 20 | BI51: 0.95 | BJ51: 47.50 | BK51: 2.00 | BL51: 25.00 | BM51: 19.00 | BN51: =$BL$56*'Oculto EcuS'!BI51 -> 23.75 | BO51: 20.00 | BP51: 1.72 | BQ51: 47.50 | BR51: 10.53 | BU51: 17 | BV51: 0.80 | BW51: 0.20 | BX51: 20.00 | BY51: 5.00 | BZ51: 12.50 | CA51: 22.50 | CB51: 22.50 | CC51: 12.50 | CF51: 14 | CG51: 0.65 | CH51: 0.35 | CI51: 48.75 | CJ51: 17.50 | CK51: 48.75 | CL51: 26.25
A52: 21 | B52: 1.00 | C52: 50.00 | D52: =$C$54/$C$57-($C$55/$C$57*'Oculto EcuS'!C52) -> 0 | E52: 20 | F52: 17.14 | G52: =$E$56*'Oculto EcuS'!B52 -> 20.00 | H52: 17.14285714 | I52: 1.8 | J52: 50.00 | K52: 9.31 | Y52: 18 | Z52: 0.85 | AA52: 0.15 | AB52: 51.00 | AC52: 7.50 | AD52: 17.65 | AE52: 53.65 | AF52: 62.79 | AG52: 35.29 | AI52: 15 | AJ52: 0.70 | AK52: 0.30 | AL52: 35.00 | AM52: 12.00 | AN52: 35.00 | AO52: 15.00 | AU52: m | AV52: p1 | AW52: x1 | AX52: p2 | AY52: x2 | AZ52: k | BA52: x1* | BB52: x2* | BH52: 21 | BI52: 1.00 | BJ52: 50.00 | BK52: 0 | BL52: 25.00 | BM52: 20.00 | BN52: =$BL$56*'Oculto EcuS'!BI52 -> 25.00 | BO52: 20.00 | BP52: 1.8 | BQ52: 50.00 | BR52: 10.00 | BU52: 18 | BV52: 0.85 | BW52: 0.15 | BX52: 21.25 | BY52: 3.75 | BZ52: 12.50 | CA52: 23.13 | CB52: 23.13 | CC52: 12.50 | CF52: 15 | CG52: 0.70 | CH52: 0.30 | CI52: 52.50 | CJ52: 15.00 | CK52: 52.50 | CL52: 22.50
Y53: 19 | Z53: 0.90 | AA53: 0.10 | AB53: 54.00 | AC53: 5.00 | AD53: 17.65 | AE53: 55.76 | AF53: 64.41 | AG53: 35.29 | AI53: 16 | AJ53: 0.75 | AK53: 0.25 | AL53: 37.50 | AM53: 10.00 | AN53: 37.50 | AO53: 12.50 | AU53: ='Cuasilineales EcuS'!C7 -> 300.0 | AV53: ='Cuasilineales EcuS'!D7 -> 3.0 | AW53: =BA53 -> 33.3 | AX53: ='Cuasilineales EcuS'!F7 -> 100.0 | AY53: =(AU53/AX53)-(AW53/AX53) -> 2.7 | AZ53: =LN(BA53)+BB53 -> 5.5 | BA53: =AX53/AV53 -> 33.3 | BB53: =(AU53/AX53)-1 -> 2.0 | BU53: 19 | BV53: 0.90 | BW53: 0.10 | BX53: 22.50 | BY53: 2.50 | BZ53: 12.50 | CA53: 23.75 | CB53: 23.75 | CC53: 12.50 | CF53: 16 | CG53: 0.75 | CH53: 0.25 | CI53: 56.25 | CJ53: 12.50 | CK53: 56.25 | CL53: 18.75
B54: m | C54: ='Cobb-Douglas EcuS'!$C$6 -> 200.00 | E54: x1 | F54: x2 | Y54: 20 | Z54: 0.95 | AA54: 0.05 | AB54: 57.00 | AC54: 2.50 | AD54: 17.65 | AE54: 57.88 | AF54: 66.03 | AG54: 35.29 | AI54: 17 | AJ54: 0.80 | AK54: 0.20 | AL54: 40.00 | AM54: 8.00 | AN54: 40.00 | AO54: 10.00 | BI54: m | BJ54: =BJ25 -> 200.00 | BL54: x1 | BM54: x2 | BU54: 20 | BV54: 0.95 | BW54: 0.05 | BX54: 23.75 | BY54: 1.25 | BZ54: 12.50 | CA54: 24.38 | CB54: 24.38 | CC54: 12.50 | CF54: 17 | CG54: 0.80 | CH54: 0.20 | CI54: 60.00 | CJ54: 10.00 | CK54: 60.00 | CL54: 15.00
B55: p1' | C55: ='Cobb-Douglas EcuS'!D7 -> 4 | E55: ='Cobb-Douglas EcuS'!$D$25 -> 0.4 | F55: ='Cobb-Douglas EcuS'!$F$25 -> 0.6 | Y55: 21 | Z55: 1.00 | AA55: 0 | AB55: 60.00 | AC55: 0 | AD55: 17.65 | AE55: 60.00 | AF55: 67.65 | AG55: 35.29 | AI55: 18 | AJ55: 0.85 | AK55: 0.15 | AL55: 42.50 | AM55: 6.00 | AN55: 42.50 | AO55: 7.50 | AS55: CUASILINEALES COMPENSADA | AW55: Recta Presupuestaria | BC55: Curva de Indiferencia | BI55: p1' | BJ55: ='Min Cobb-Douglas'!D7 -> 4 | BL55: =BJ56 -> 0.5 | BM55: =1-BL55 -> 0.5 | BU55: 21 | BV55: 1.00 | BW55: 0 | BX55: 25.00 | BY55: 0 | BZ55: 12.50 | CA55: 25.00 | CB55: 25.00 | CC55: 12.50 | CF55: 18 | CG55: 0.85 | CH55: 0.15 | CI55: 63.75 | CJ55: 7.50 | CK55: 63.75 | CL55: 11.25
B56: alpha | C56: ='Cobb-Douglas EcuS'!$D$24 -> 0.4 | E56: =C56*C54/C55 -> 20.00 | F56: =(1-C56)*C54/C57 -> 17.14 | AI56: 19 | AJ56: 0.90 | AK56: 0.10 | AL56: 45.00 | AM56: 4.00 | AN56: 45.00 | AO56: 5.00 | AS56: Unidades | AT56: Unidades | AU56: ponderador | AV56: ponderador | AW56: x1 | AX56: x2 | AY56: x1lin | BA56: x2lin | BC56: x1 | BD56: x2 | BI56: alpha | BJ56: =BJ27 -> 0.5 | BL56: =BJ56*BJ54/BJ55 -> 25.00 | BM56: =(1-BJ56)*BJ54/BJ57 -> 20.00 | CF56: 19 | CG56: 0.90 | CH56: 0.10 | CI56: 67.50 | CJ56: 5.00 | CK56: 67.50 | CL56: 7.50
B57: p2 | C57: ='Cobb-Douglas EcuS'!$F$6 -> 7 | F57: =(E56^(E55))*(F56^(F55)) -> 18.23315911 | AA57: m | AB57: =AB25 -> 300 | AI57: 20 | AJ57: 0.95 | AK57: 0.05 | AL57: 47.50 | AM57: 2.00 | AN57: 47.50 | AO57: 2.50 | AS57: 0.01 | AT57: 1 | AU57: 1.00 | AV57: 0 | AW57: =($AU$80/$AV$80)*AV57 -> 0 | AX57: =($AU$80/$AX$80)*AU57 -> 3.00 | AY57: =$BA$80 -> 33.3 | AZ57: =$BB$80*AV57 -> 0 | BA57: =$BA$80*AV57 -> 0 | BB57: =$BB$80 -> 2.0 | BC57: =$BA$80*AS57 -> 0.33 | BD57: =$AZ$26-(LN(BC57)) -> 6.61 | BI57: p2 | BJ57: =BJ28 -> 5 | BM57: =(BL56^(BL55))*(BM56^(BM55)) -> 22.36067977 | BW57: m | BX57: =BX25 -> 100 | CF57: 20 | CG57: 0.95 | CH57: 0.05 | CI57: 71.25 | CJ57: 2.50 | CK57: 71.25 | CL57: 3.75
AA58: p1 | AB58: ='CompPerf EcuS'!D7 -> 5 | AI58: 21 | AJ58: 1.00 | AK58: 0 | AL58: 50.00 | AM58: 0 | AN58: 50.00 | AO58: 0 | AS58: 0.1 | AT58: 2 | AU58: 0.95 | AV58: 0.05 | AW58: =($AU$80/$AV$80)*AV58 -> 5.00 | AX58: =($AU$80/$AX$80)*AU58 -> 2.85 | AY58: =$BA$80 -> 33.3 | AZ58: =$BB$80*AV58 -> 0.10 | BA58: =$BA$80*AV58 -> 1.67 | BB58: =$BB$80 -> 2.0 | BC58: =$BA$80*AS58 -> 3.33 | BD58: =$AZ$80-(LN(BC58)) -> 4.30 | BW58: p1 | BX58: ='Min CompPerf'!D7 -> 4 | CF58: 21 | CG58: 1.00 | CH58: 0 | CI58: 75.00 | CJ58: 0 | CK58: 75.00 | CL58: 0
A59: COBB-DOUGLAS 3 | C59: Recta Presupuestaria | J59: Curva de Indiferencia | AA59: p2 | AB59: =AB27 -> 6 | AS59: 0.2 | AT59: 3 | AU59: 0.90 | AV59: 0.10 | AW59: 10.00 | AX59: 2.70 | AY59: 33.3 | AZ59: 0.20 | BA59: 3.33 | BB59: 2.0 | BC59: 6.67 | BD59: 3.61 | BH59: COBB-DOUGLAS 3 | BJ59: Recta Presupuestaria | BQ59: Curva de Indiferencia | BW59: p2 | BX59: =BX27 -> 4
A60: Unidades | B60: ponderador | C60: x1 | D60: x2 | E60: x5lin | G60: x6lin | I60: Cota | J60: x1 | K60: x2 | AA60: x1 | AB60: =AB57/(AB58+(AB62*AB59)) -> 17.64705882 | AJ60: m | AK60: =AK25 -> 200 | AL60: p1<p2 | AS60: 0.3 | AT60: 4 | AU60: 0.85 | AV60: 0.15 | AW60: 15.00 | AX60: 2.55 | AY60: 33.3 | AZ60: 0.30 | BA60: 5.00 | BB60: 2.0 | BC60: 10.00 | BD60: 3.20 | BH60: Unidades | BI60: ponderador | BJ60: x1 | BK60: x2 | BL60: x5lin | BN60: x6lin | BP60: Cota | BQ60: x1 | BR60: x2 | BW60: x1 | BX60: =BX57/(BX58+BX62*BX59) -> 12.5 | CG60: m | CH60: =CH25 -> 300 | CI60: p1<p2
A61: 1 | B61: 0 | C61: =$C$83/$C$84*B61 -> 0 | D61: =$C$83/$C$86-($C$84/$C$86*'Oculto EcuS'!C61) -> 28.57 | E61: =$E$85 -> 20 | F61: =$F$85*B61 -> 0 | G61: =$E$85*B61 -> 0 | H61: =$F$85 -> 17.14285714 | AA61: x2 | AB61: =(AB62*AB57)/(AB58+(AB62*AB59)) -> 35.29411765 | AJ61: X1 | AK61: =AK60/AK64 -> 50.00 | AL61: =AK64 -> 4 | AM61: =AK65*AK68 -> 5 | AS61: 0.4 | AT61: 5 | AU61: 0.80 | AV61: 0.20 | AW61: 20.00 | AX61: 2.40 | AY61: 33.3 | AZ61: 0.40 | BA61: 6.67 | BB61: 2.0 | BC61: 13.33 | BD61: 2.92 | BH61: 1 | BI61: 0 | BJ61: =$BJ$83/$BJ$84*BI61 -> 0 | BK61: =$BJ$83/$BJ$86-$BJ$84/$BJ$86*BJ61 -> 40.00 | BL61: =$BL$85 -> 25.00 | BM61: =$BM$85*BI61 -> 0 | BN61: =$BL$85*BI61 -> 0 | BO61: =$BM$85 -> 20.00 | BW61: x2 | BX61: =BX62*BX57/(BX58+BX62*BX59) -> 12.5 | CG61: X1 | CH61: =IF(CI61<CJ61,CH60/CH64,0) -> 75.00 | CI61: =CH64 -> 4 | CJ61: =CH65*CH68 -> 6
A62: 2 | B62: 0.05 | C62: =$C$83/$C$84*B62 -> 2.50 | D62: =$C$83/$C$86-($C$84/$C$86*'Oculto EcuS'!C62) -> 27.14 | E62: =$E$85 -> 20 | F62: =$F$85*B62 -> 0.86 | G62: =$E$85*B62 -> 1.00 | H62: =$F$85 -> 17.14285714 | I62: 0.28 | J62: =C62 -> 2.50 | K62: =($F$86/(J62^($E$84)))^(1/$F$84) -> 68.57 | AA62: relacion | AB62: =AB30 -> 2 | AJ62: X2 | AK62: =AK60/AK65 -> 40.00 | AS62: 0.5 | AT62: 6 | AU62: 0.75 | AV62: 0.25 | AW62: 25.00 | AX62: 2.25 | AY62: 33.3 | AZ62: 0.50 | BA62: 8.33 | BB62: 2.0 | BC62: 16.67 | BD62: 2.69 | BH62: 2 | BI62: 0.05 | BJ62: =$BJ$83/$BJ$84*BI62 -> 2.50 | BK62: =$BJ$83/$BJ$86-$BJ$84/$BJ$86*BJ62 -> 38.00 | BL62: =$BL$85 -> 25.00 | BM62: =$BM$85*BI62 -> 1.00 | BN62: =$BL$85*BI62 -> 1.25 | BO62: =$BM$85 -> 20.00 | BP62: 0.28 | BQ62: =BJ62 -> 2.50 | BR62: =($BM$86/(BQ62^($BL$84)))^(1/$BM$84) -> 200.00 | BW62: relacion | BX62: =BX30 -> 1 | CG62: X2 | CH62: =IF(CI61<CJ61,0,CH60/CH65) -> 0
A63: 3 | B63: 0.10 | C63: 5.00 | D63: =$C$83/$C$86-($C$84/$C$86*'Oculto EcuS'!C63) -> 25.71 | E63: 20 | F63: 1.71 | G63: 2.00 | H63: 17.14285714 | I63: 0.36 | J63: =C63 -> 5.00 | K63: =($F$86/(J63^($E$84)))^(1/$F$84) -> 43.20 | AJ63: K | AK63: =AM66 -> 50 | AL63: x1 | AM63: x2 | AS63: 0.6 | AT63: 7 | AU63: 0.70 | AV63: 0.30 | AW63: 30.00 | AX63: 2.10 | AY63: 33.3 | AZ63: 0.60 | BA63: 10.00 | BB63: 2.0 | BC63: 20.00 | BD63: 2.51 | BH63: 3 | BI63: 0.10 | BJ63: 5.00 | BK63: 36.00 | BL63: 25.00 | BM63: 2.00 | BN63: 2.50 | BO63: 20.00 | BP63: 0.36 | BQ63: =BJ63 -> 5.00 | BR63: =($BM$86/(BQ63^($BL$84)))^(1/$BM$84) -> 100.00 | BW63: k | BX63: =MIN(BX60,(BX61/2)) -> 6.25 | CG63: K | CH63: =CH61+CH62 -> 75.00 | CI63: x1 | CJ63: x2
A64: 4 | B64: 0.15 | C64: 7.50 | D64: =$C$83/$C$86-($C$84/$C$86*'Oculto EcuS'!C64) -> 24.29 | E64: 20 | F64: 2.57 | G64: 3.00 | H64: 17.14285714 | I64: 0.44 | J64: 7.50 | K64: 32.97 | AJ64: P1 | AK64: ='SustPerf EcuS'!$D$7 -> 4 | AL64: =AK60/AK64 -> 50 | AM64: =AK60/AK65 -> 40 | AS64: 0.7 | AT64: 8 | AU64: 0.65 | AV64: 0.35 | AW64: 35.00 | AX64: 1.95 | AY64: 33.3 | AZ64: 0.70 | BA64: 11.67 | BB64: 2.0 | BC64: 23.33 | BD64: 2.36 | BH64: 4 | BI64: 0.15 | BJ64: 7.50 | BK64: 34.00 | BL64: 25.00 | BM64: 3.00 | BN64: 3.75 | BO64: 20.00 | BP64: 0.44 | BQ64: 7.50 | BR64: 66.67 | CG64: P1 | CH64: ='Min SustPerf'!D7 -> 4 | CI64: =CH60/CH64 -> 75 | CJ64: =CH60/CH65 -> 50
A65: 5 | B65: 0.20 | C65: 10.00 | D65: =$C$83/$C$86-($C$84/$C$86*'Oculto EcuS'!C65) -> 22.86 | E65: 20 | F65: 3.43 | G65: 4.00 | H65: 17.14285714 | I65: 0.52 | J65: 10.00 | K65: 27.21 | Y65: COMP. PERFECTOS 3 | AB65: Recta Presupuestaria | AD65: Curva de Indiferencia | AJ65: P2 | AK65: =AK30 -> 5 | AL65: =AK60/AK64 -> 50 | AM65: =AL65*AK68 -> 50 | AS65: 0.8 | AT65: 9 | AU65: 0.60 | AV65: 0.40 | AW65: 40.00 | AX65: 1.80 | AY65: 33.3 | AZ65: 0.80 | BA65: 13.33 | BB65: 2.0 | BC65: 26.67 | BD65: 2.22 | BH65: 5 | BI65: 0.20 | BJ65: 10.00 | BK65: 32.00 | BL65: 25.00 | BM65: 4.00 | BN65: 5.00 | BO65: 20.00 | BP65: 0.52 | BQ65: 10.00 | BR65: 50.00 | BU65: COMP. PERFECTOS 3 | BX65: Recta Presupuestaria | BZ65: Curva de Indiferencia | CG65: P2 | CH65: ='Oculto EcuS'!CH30 -> 6 | CI65: =CH60/CH64 -> 75 | CJ65: =CI65*CH68 -> 75
A66: 6 | B66: 0.25 | C66: 12.50 | D66: =$C$83/$C$86-($C$84/$C$86*'Oculto EcuS'!C66) -> 21.43 | E66: 20 | F66: 4.29 | G66: 5.00 | H66: 17.14285714 | I66: 0.6 | J66: 12.50 | K66: 23.45 | Y66: Unidades | Z66: ponderador | AB66: x1 | AC66: x2 | AD66: vertice | AE66: x1line | AF66: x2line | AJ66: X1* | AK66: =IF(AL61<=AM61,AL58,0) -> 50 | AM66: =IF(AL61<AM61,AL64,AM64) -> 50 | AS66: 0.9 | AT66: 10 | AU66: 0.55 | AV66: 0.45 | AW66: 45.00 | AX66: 1.65 | AY66: 33.3 | AZ66: 0.90 | BA66: 15.00 | BB66: 2.0 | BC66: 30.00 | BD66: 2.11 | BH66: 6 | BI66: 0.25 | BJ66: 12.50 | BK66: 30.00 | BL66: 25.00 | BM66: 5.00 | BN66: 6.25 | BO66: 20.00 | BP66: 0.6 | BQ66: 12.50 | BR66: 40.00 | BU66: Unidades | BV66: ponderador | BX66: x1 | BY66: x2 | BZ66: vertice | CA66: x1line | CB66: x2line | CG66: X1* | CH66: =IF(CI61<=CJ61,CI58,0) -> 75 | CJ66: =IF(CI61<CJ61,CI64,CJ64) -> 75
A67: 7 | B67: 0.30 | C67: 15.00 | D67: =$C$83/$C$86-($C$84/$C$86*'Oculto EcuS'!C67) -> 20.00 | E67: 20 | F67: 5.14 | G67: 6.00 | H67: 17.14285714 | I67: 0.68 | J67: 15.00 | K67: 20.77 | Y67: 1 | Z67: 0 | AA67: 1.00 | AB67: =$AB$89/$AB$90*Z67 -> 0 | AC67: =$AB$89/$AB$91*AA67 -> 50.00 | AD67: =AB92 -> 17.65 | AE67: =AD67+(($AD$28-AD67)*Z67) -> 17.65 | AF67: =AG67+(($AF$28-AD67)*Z67) -> 35.29 | AG67: =$AB$93 -> 35.29 | AJ67: X2* | AK67: =IF(AL61>AM61,AM38,0) -> 0 | AS67: 1 | AT67: 11 | AU67: 0.50 | AV67: 0.50 | AW67: 50.00 | AX67: 1.50 | AY67: 33.3 | AZ67: 1.00 | BA67: 16.67 | BB67: 2.0 | BC67: 33.33 | BD67: 2.00 | BH67: 7 | BI67: 0.30 | BJ67: 15.00 | BK67: 28.00 | BL67: 25.00 | BM67: 6.00 | BN67: 7.50 | BO67: 20.00 | BP67: 0.68 | BQ67: 15.00 | BR67: 33.33 | BU67: 1 | BV67: 0 | BW67: 1.00 | BX67: =$BX$89/$BX$90*BV67 -> 0 | BY67: =$BX$89/$BX$91*BW67 -> 25.00 | BZ67: =BX92 -> 12.50 | CA67: =BZ67+(($BZ$28-BZ67)*BV67) -> 12.50 | CB67: =CC67+(($CB$28-BZ67)*BV67) -> 12.50 | CC67: =$BX$93 -> 12.50 | CG67: X2* | CH67: =IF(CI61>CJ61,CJ38,0) -> 0
A68: 8 | B68: 0.35 | C68: 17.50 | D68: =$C$83/$C$86-($C$84/$C$86*'Oculto EcuS'!C68) -> 18.57 | E68: 20 | F68: 6.00 | G68: 7.00 | H68: 17.14285714 | I68: 0.76 | J68: 17.50 | K68: 18.74 | Y68: 2 | Z68: 0.05 | AA68: 0.95 | AB68: =$AB$89/$AB$90*Z68 -> 3.00 | AC68: =$AB$89/$AB$91*AA68 -> 47.50 | AD68: =AD67 -> 17.65 | AE68: =AD68+(($AD$28-AD68)*Z68) -> 19.76 | AF68: =AG68+(($AF$28-AD68)*Z68) -> 36.91 | AG68: =$AB$93 -> 35.29 | AJ68: Rel. 1 a: | AK68: =AK33 -> 1.0 | AS68: 1.1 | AT68: 12 | AU68: 0.45 | AV68: 0.55 | AW68: 55.00 | AX68: 1.35 | AY68: 33.3 | AZ68: 1.10 | BA68: 18.33 | BB68: 2.0 | BC68: 36.67 | BD68: 1.90 | BH68: 8 | BI68: 0.35 | BJ68: 17.50 | BK68: 26.00 | BL68: 25.00 | BM68: 7.00 | BN68: 8.75 | BO68: 20.00 | BP68: 0.76 | BQ68: 17.50 | BR68: 28.57 | BU68: 2 | BV68: 0.05 | BW68: 0.95 | BX68: =$BX$89/$BX$90*BV68 -> 1.25 | BY68: =$BX$89/$BX$91*BW68 -> 23.75 | BZ68: =BZ67 -> 12.50 | CA68: =BZ68+(($BZ$28-BZ68)*BV68) -> 13.13 | CB68: =CC68+(($CB$28-BZ68)*BV68) -> 13.13 | CC68: =$BX$93 -> 12.50 | CG68: Rel. 1 a: | CH68: =CH33 -> 1.0
A69: 9 | B69: 0.40 | C69: 20.00 | D69: =$C$83/$C$86-($C$84/$C$86*'Oculto EcuS'!C69) -> 17.14 | E69: 20 | F69: 6.86 | G69: 8.00 | H69: 17.14285714 | I69: 0.84 | J69: 20.00 | K69: 17.14 | Y69: 3 | Z69: 0.10 | AA69: 0.90 | AB69: 6.00 | AC69: 45.00 | AD69: =AD68 -> 17.65 | AE69: 21.88 | AF69: 38.53 | AG69: 35.29 | AS69: 1.2 | AT69: 13 | AU69: 0.40 | AV69: 0.60 | AW69: 60.00 | AX69: 1.20 | AY69: 33.3 | AZ69: 1.20 | BA69: 20.00 | BB69: 2.0 | BC69: 40.00 | BD69: 1.82 | BH69: 9 | BI69: 0.40 | BJ69: 20.00 | BK69: 24.00 | BL69: 25.00 | BM69: 8.00 | BN69: 10.00 | BO69: 20.00 | BP69: 0.84 | BQ69: 20.00 | BR69: 25.00 | BU69: 3 | BV69: 0.10 | BW69: 0.90 | BX69: 2.50 | BY69: 22.50 | BZ69: =BZ68 -> 12.50 | CA69: 13.75 | CB69: 13.75 | CC69: 12.50
A70: 10 | B70: 0.45 | C70: 22.50 | D70: =$C$83/$C$86-($C$84/$C$86*'Oculto EcuS'!C70) -> 15.71 | E70: 20 | F70: 7.71 | G70: 9.00 | H70: 17.14285714 | I70: 0.92 | J70: 22.50 | K70: 15.85 | Y70: 4 | Z70: 0.15 | AA70: 0.85 | AB70: 9.00 | AC70: 42.50 | AD70: 17.65 | AE70: 24.00 | AF70: 40.15 | AG70: 35.29 | AS70: 1.3 | AT70: 14 | AU70: 0.35 | AV70: 0.65 | AW70: 65.00 | AX70: 1.05 | AY70: 33.3 | AZ70: 1.30 | BA70: 21.67 | BB70: 2.0 | BC70: 43.33 | BD70: 1.74 | BH70: 10 | BI70: 0.45 | BJ70: 22.50 | BK70: 22.00 | BL70: 25.00 | BM70: 9.00 | BN70: 11.25 | BO70: 20.00 | BP70: 0.92 | BQ70: 22.50 | BR70: 22.22 | BU70: 4 | BV70: 0.15 | BW70: 0.85 | BX70: 3.75 | BY70: 21.25 | BZ70: 12.50 | CA70: 14.38 | CB70: 14.38 | CC70: 12.50
A71: 11 | B71: 0.50 | C71: 25.00 | D71: =$C$83/$C$86-($C$84/$C$86*'Oculto EcuS'!C71) -> 14.29 | E71: 20 | F71: 8.57 | G71: 10.00 | H71: 17.14285714 | I71: 1 | J71: 25.00 | K71: 14.77 | Y71: 5 | Z71: 0.20 | AA71: 0.80 | AB71: 12.00 | AC71: 40.00 | AD71: 17.65 | AE71: 26.12 | AF71: 41.76 | AG71: 35.29 | AI71: SUSTITUTOS PERFECTOS | AL71: Recta Presupuestaria | AN71: Curva de Indiferencia | AS71: 1.4 | AT71: 15 | AU71: 0.30 | AV71: 0.70 | AW71: 70.00 | AX71: 0.90 | AY71: 33.3 | AZ71: 1.40 | BA71: 23.33 | BB71: 2.0 | BC71: 46.67 | BD71: 1.66 | BH71: 11 | BI71: 0.50 | BJ71: 25.00 | BK71: 20.00 | BL71: 25.00 | BM71: 10.00 | BN71: 12.50 | BO71: 20.00 | BP71: 1 | BQ71: 25.00 | BR71: 20.00 | BU71: 5 | BV71: 0.20 | BW71: 0.80 | BX71: 5.00 | BY71: 20.00 | BZ71: 12.50 | CA71: 15.00 | CB71: 15.00 | CC71: 12.50 | CF71: SUSTITUTOS PERFECTOS | CI71: Recta Presupuestaria | CK71: Curva de Indiferencia
A72: 12 | B72: 0.55 | C72: 27.50 | D72: =$C$83/$C$86-($C$84/$C$86*'Oculto EcuS'!C72) -> 12.86 | E72: 20 | F72: 9.43 | G72: 11.00 | H72: 17.14285714 | I72: 1.08 | J72: 27.50 | K72: 13.86 | Y72: 6 | Z72: 0.25 | AA72: 0.75 | AB72: 15.00 | AC72: 37.50 | AD72: 17.65 | AE72: 28.24 | AF72: 43.38 | AG72: 35.29 | AI72: Unidades | AJ72: ponderador | AL72: x1 | AM72: x2 | AN72: x1lin | AO72: sip1>p2 | AS72: 1.5 | AT72: 16 | AU72: 0.25 | AV72: 0.75 | AW72: 75.00 | AX72: 0.75 | AY72: 33.3 | AZ72: 1.50 | BA72: 25.00 | BB72: 2.0 | BC72: 50.00 | BD72: 1.59 | BH72: 12 | BI72: 0.55 | BJ72: 27.50 | BK72: 18.00 | BL72: 25.00 | BM72: 11.00 | BN72: 13.75 | BO72: 20.00 | BP72: 1.08 | BQ72: 27.50 | BR72: 18.18 | BU72: 6 | BV72: 0.25 | BW72: 0.75 | BX72: 6.25 | BY72: 18.75 | BZ72: 12.50 | CA72: 15.63 | CB72: 15.63 | CC72: 12.50 | CF72: Unidades | CG72: ponderador | CI72: x1 | CJ72: x2 | CK72: x1lin | CL72: sip1>p2
A73: 13 | B73: 0.60 | C73: 30.00 | D73: =$C$83/$C$86-($C$84/$C$86*'Oculto EcuS'!C73) -> 11.43 | E73: 20 | F73: 10.29 | G73: 12.00 | H73: 17.14285714 | I73: 1.16 | J73: 30.00 | K73: 13.08 | Y73: 7 | Z73: 0.30 | AA73: 0.70 | AB73: 18.00 | AC73: 35.00 | AD73: 17.65 | AE73: 30.35 | AF73: 45.00 | AG73: 35.29 | AI73: 1 | AJ73: 0 | AK73: 1.00 | AL73: =$AK$96*AJ73 -> 0 | AM73: =$AK$97*AK73 -> 40.00 | AN73: =IF($AM$96<$AL$96,(($AM$101-AO73)/($AK$103)),($AL$99*AJ73)) -> 0 | AO73: =$AM$101*AK73 -> 50.00 | AS73: 1.6 | AT73: 17 | AU73: 0.20 | AV73: 0.80 | AW73: 80.00 | AX73: 0.60 | AY73: 33.3 | AZ73: 1.60 | BA73: 26.67 | BB73: 2.0 | BC73: 53.33 | BD73: 1.53 | BH73: 13 | BI73: 0.60 | BJ73: 30.00 | BK73: 16.00 | BL73: 25.00 | BM73: 12.00 | BN73: 15.00 | BO73: 20.00 | BP73: 1.16 | BQ73: 30.00 | BR73: 16.67 | BU73: 7 | BV73: 0.30 | BW73: 0.70 | BX73: 7.50 | BY73: 17.50 | BZ73: 12.50 | CA73: 16.25 | CB73: 16.25 | CC73: 12.50 | CF73: 1 | CG73: 0 | CH73: 1.00 | CI73: =$CH$95/$CH$99*CG73 -> 0 | CJ73: =$CH$95/$CH$100-(($CH$99/$CH$100)*CI73) -> 50.00 | CK73: =MAX($CI$99:$CJ$100)*CG73 -> 0 | CL73: =$CH$103*$CH$98-$CH$103*CK73 -> 75.00
A74: 14 | B74: 0.65 | C74: 32.50 | D74: =$C$83/$C$86-($C$84/$C$86*'Oculto EcuS'!C74) -> 10.00 | E74: 20 | F74: 11.14 | G74: 13.00 | H74: 17.14285714 | I74: 1.24 | J74: 32.50 | K74: 12.40 | Y74: 8 | Z74: 0.35 | AA74: 0.65 | AB74: 21.00 | AC74: 32.50 | AD74: 17.65 | AE74: 32.47 | AF74: 46.62 | AG74: 35.29 | AI74: 2 | AJ74: 0.05 | AK74: 0.95 | AL74: =$AK$96*AJ74 -> 2.50 | AM74: =$AK$97*AK74 -> 38.00 | AN74: 2.50 | AO74: =$AM$101*AK74 -> 47.50 | AS74: 1.7 | AT74: 18 | AU74: 0.15 | AV74: 0.85 | AW74: 85.00 | AX74: 0.45 | AY74: 33.3 | AZ74: 1.70 | BA74: 28.33 | BB74: 2.0 | BC74: 56.67 | BD74: 1.47 | BH74: 14 | BI74: 0.65 | BJ74: 32.50 | BK74: 14.00 | BL74: 25.00 | BM74: 13.00 | BN74: 16.25 | BO74: 20.00 | BP74: 1.24 | BQ74: 32.50 | BR74: 15.38 | BU74: 8 | BV74: 0.35 | BW74: 0.65 | BX74: 8.75 | BY74: 16.25 | BZ74: 12.50 | CA74: 16.88 | CB74: 16.88 | CC74: 12.50 | CF74: 2 | CG74: 0.05 | CH74: 0.95 | CI74: =$CH$95/$CH$99*CG74 -> 3.75 | CJ74: =$CH$95/$CH$100-(($CH$99/$CH$100)*CI74) -> 47.50 | CK74: =MAX($CI$99:$CJ$100)*CG74 -> 3.75 | CL74: =$CH$103*$CH$98-$CH$103*CK74 -> 71.25
A75: 15 | B75: 0.70 | C75: 35.00 | D75: =$C$83/$C$86-($C$84/$C$86*'Oculto EcuS'!C75) -> 8.57 | E75: 20 | F75: 12.00 | G75: 14.00 | H75: 17.14285714 | I75: 1.32 | J75: 35.00 | K75: 11.80 | Y75: 9 | Z75: 0.40 | AA75: 0.60 | AB75: 24.00 | AC75: 30.00 | AD75: 17.65 | AE75: 34.59 | AF75: 48.24 | AG75: 35.29 | AI75: 3 | AJ75: 0.10 | AK75: 0.90 | AL75: 5.00 | AM75: 36.00 | AN75: 5.00 | AO75: 45.00 | AS75: 1.8 | AT75: 19 | AU75: 0.10 | AV75: 0.90 | AW75: 90.00 | AX75: 0.30 | AY75: 33.3 | AZ75: 1.80 | BA75: 30.00 | BB75: 2.0 | BC75: 60.00 | BD75: 1.41 | BH75: 15 | BI75: 0.70 | BJ75: 35.00 | BK75: 12.00 | BL75: 25.00 | BM75: 14.00 | BN75: 17.50 | BO75: 20.00 | BP75: 1.32 | BQ75: 35.00 | BR75: 14.29 | BU75: 9 | BV75: 0.40 | BW75: 0.60 | BX75: 10.00 | BY75: 15.00 | BZ75: 12.50 | CA75: 17.50 | CB75: 17.50 | CC75: 12.50 | CF75: 3 | CG75: 0.10 | CH75: 0.90 | CI75: 7.50 | CJ75: 45.00 | CK75: 7.50 | CL75: 67.50
A76: 16 | B76: 0.75 | C76: 37.50 | D76: =$C$83/$C$86-($C$84/$C$86*'Oculto EcuS'!C76) -> 7.14 | E76: 20 | F76: 12.86 | G76: 15.00 | H76: 17.14285714 | I76: 1.4 | J76: 37.50 | K76: 11.27 | Y76: 10 | Z76: 0.45 | AA76: 0.55 | AB76: 27.00 | AC76: 27.50 | AD76: 17.65 | AE76: 36.71 | AF76: 49.85 | AG76: 35.29 | AI76: 4 | AJ76: 0.15 | AK76: 0.85 | AL76: 7.50 | AM76: 34.00 | AN76: 7.50 | AO76: 42.50 | AS76: 1.9 | AT76: 20 | AU76: 0.05 | AV76: 0.95 | AW76: 95.00 | AX76: 0.15 | AY76: 33.3 | AZ76: 1.90 | BA76: 31.67 | BB76: 2.0 | BC76: 63.33 | BD76: 1.36 | BH76: 16 | BI76: 0.75 | BJ76: 37.50 | BK76: 10.00 | BL76: 25.00 | BM76: 15.00 | BN76: 18.75 | BO76: 20.00 | BP76: 1.4 | BQ76: 37.50 | BR76: 13.33 | BU76: 10 | BV76: 0.45 | BW76: 0.55 | BX76: 11.25 | BY76: 13.75 | BZ76: 12.50 | CA76: 18.13 | CB76: 18.13 | CC76: 12.50 | CF76: 4 | CG76: 0.15 | CH76: 0.85 | CI76: 11.25 | CJ76: 42.50 | CK76: 11.25 | CL76: 63.75
A77: 17 | B77: 0.80 | C77: 40.00 | D77: =$C$83/$C$86-($C$84/$C$86*'Oculto EcuS'!C77) -> 5.71 | E77: 20 | F77: 13.71 | G77: 16.00 | H77: 17.14285714 | I77: 1.48 | J77: 40.00 | K77: 10.80 | Y77: 11 | Z77: 0.50 | AA77: 0.50 | AB77: 30.00 | AC77: 25.00 | AD77: 17.65 | AE77: 38.82 | AF77: 51.47 | AG77: 35.29 | AI77: 5 | AJ77: 0.20 | AK77: 0.80 | AL77: 10.00 | AM77: 32.00 | AN77: 10.00 | AO77: 40.00 | AS77: 2 | AT77: 21 | AU77: 0 | AV77: 1.00 | AW77: 100.00 | AX77: 0 | AY77: 33.3 | AZ77: 2.00 | BA77: 33.33 | BB77: 2.0 | BC77: 66.67 | BD77: 1.31 | BH77: 17 | BI77: 0.80 | BJ77: 40.00 | BK77: 8.00 | BL77: 25.00 | BM77: 16.00 | BN77: 20.00 | BO77: 20.00 | BP77: 1.48 | BQ77: 40.00 | BR77: 12.50 | BU77: 11 | BV77: 0.50 | BW77: 0.50 | BX77: 12.50 | BY77: 12.50 | BZ77: 12.50 | CA77: 18.75 | CB77: 18.75 | CC77: 12.50 | CF77: 5 | CG77: 0.20 | CH77: 0.80 | CI77: 15.00 | CJ77: 40.00 | CK77: 15.00 | CL77: 60.00
A78: 18 | B78: 0.85 | C78: 42.50 | D78: =$C$83/$C$86-($C$84/$C$86*'Oculto EcuS'!C78) -> 4.29 | E78: 20 | F78: 14.57 | G78: 17.00 | H78: 17.14285714 | I78: 1.56 | J78: 42.50 | K78: 10.37 | Y78: 12 | Z78: 0.55 | AA78: 0.45 | AB78: 33.00 | AC78: 22.50 | AD78: 17.65 | AE78: 40.94 | AF78: 53.09 | AG78: 35.29 | AI78: 6 | AJ78: 0.25 | AK78: 0.75 | AL78: 12.50 | AM78: 30.00 | AN78: 12.50 | AO78: 37.50 | BH78: 18 | BI78: 0.85 | BJ78: 42.50 | BK78: 6.00 | BL78: 25.00 | BM78: 17.00 | BN78: 21.25 | BO78: 20.00 | BP78: 1.56 | BQ78: 42.50 | BR78: 11.76 | BU78: 12 | BV78: 0.55 | BW78: 0.45 | BX78: 13.75 | BY78: 11.25 | BZ78: 12.50 | CA78: 19.38 | CB78: 19.38 | CC78: 12.50 | CF78: 6 | CG78: 0.25 | CH78: 0.75 | CI78: 18.75 | CJ78: 37.50 | CK78: 18.75 | CL78: 56.25
A79: 19 | B79: 0.90 | C79: 45.00 | D79: =$C$83/$C$86-($C$84/$C$86*'Oculto EcuS'!C79) -> 2.86 | E79: 20 | F79: 15.43 | G79: 18.00 | H79: 17.14285714 | I79: 1.64 | J79: 45.00 | K79: 9.98 | Y79: 13 | Z79: 0.60 | AA79: 0.40 | AB79: 36.00 | AC79: 20.00 | AD79: 17.65 | AE79: 43.06 | AF79: 54.71 | AG79: 35.29 | AI79: 7 | AJ79: 0.30 | AK79: 0.70 | AL79: 15.00 | AM79: 28.00 | AN79: 15.00 | AO79: 35.00 | AU79: m | AV79: p1 | AW79: x1 | AX79: p2 | AY79: x2 | AZ79: k | BA79: x1* | BB79: x2* | BD79: DM=x1(dp) | BE79: m' | BH79: 19 | BI79: 0.90 | BJ79: 45.00 | BK79: 4.00 | BL79: 25.00 | BM79: 18.00 | BN79: 22.50 | BO79: 20.00 | BP79: 1.64 | BQ79: 45.00 | BR79: 11.11 | BU79: 13 | BV79: 0.60 | BW79: 0.40 | BX79: 15.00 | BY79: 10.00 | BZ79: 12.50 | CA79: 20.00 | CB79: 20.00 | CC79: 12.50 | CF79: 7 | CG79: 0.30 | CH79: 0.70 | CI79: 22.50 | CJ79: 35.00 | CK79: 22.50 | CL79: 52.50
A80: 20 | B80: 0.95 | C80: 47.50 | D80: =$C$83/$C$86-($C$84/$C$86*'Oculto EcuS'!C80) -> 1.43 | E80: 20 | F80: 16.29 | G80: 19.00 | H80: 17.14285714 | I80: 1.72 | J80: 47.50 | K80: 9.63 | Y80: 14 | Z80: 0.65 | AA80: 0.35 | AB80: 39.00 | AC80: 17.50 | AD80: 17.65 | AE80: 45.18 | AF80: 56.32 | AG80: 35.29 | AI80: 8 | AJ80: 0.35 | AK80: 0.65 | AL80: 17.50 | AM80: 26.00 | AN80: 17.50 | AO80: 32.50 | AU80: ='Cuasilineales EcuS'!$C$8 -> 300.0 | AV80: ='Cuasilineales EcuS'!D8 -> 3.0 | AW80: =BA80 -> 33.3 | AX80: ='Cuasilineales EcuS'!F8 -> 100.0 | AY80: =(AU80/AX80)-(AW80/AX80) -> 2.7 | AZ80: =LN(BA80)+BB80 -> 5.5 | BA80: =AX80/AV80 -> 33.3 | BB80: =(AU80/AX80)-1 -> 2.0 | BD80: =BA26*(AV53-AV26) -> 0 | BE80: ='Cuasilineales EcuS'!C6+'Oculto EcuS'!BD80 -> 300 | BH80: 20 | BI80: 0.95 | BJ80: 47.50 | BK80: 2.00 | BL80: 25.00 | BM80: 19.00 | BN80: 23.75 | BO80: 20.00 | BP80: 1.72 | BQ80: 47.50 | BR80: 10.53 | BU80: 14 | BV80: 0.65 | BW80: 0.35 | BX80: 16.25 | BY80: 8.75 | BZ80: 12.50 | CA80: 20.63 | CB80: 20.63 | CC80: 12.50 | CF80: 8 | CG80: 0.35 | CH80: 0.65 | CI80: 26.25 | CJ80: 32.50 | CK80: 26.25 | CL80: 48.75
A81: 21 | B81: 1.00 | C81: 50.00 | D81: =$C$83/$C$86-($C$84/$C$86*'Oculto EcuS'!C81) -> 0 | E81: 20 | F81: 17.14 | G81: 20.00 | H81: 17.14285714 | I81: 1.8 | J81: 50.00 | K81: 9.31 | Y81: 15 | Z81: 0.70 | AA81: 0.30 | AB81: 42.00 | AC81: 15.00 | AD81: 17.65 | AE81: 47.29 | AF81: 57.94 | AG81: 35.29 | AI81: 9 | AJ81: 0.40 | AK81: 0.60 | AL81: 20.00 | AM81: 24.00 | AN81: 20.00 | AO81: 30.00 | BH81: 21 | BI81: 1.00 | BJ81: 50.00 | BK81: 0 | BL81: 25.00 | BM81: 20.00 | BN81: 25.00 | BO81: 20.00 | BP81: 1.8 | BQ81: 50.00 | BR81: 10.00 | BU81: 15 | BV81: 0.70 | BW81: 0.30 | BX81: 17.50 | BY81: 7.50 | BZ81: 12.50 | CA81: 21.25 | CB81: 21.25 | CC81: 12.50 | CF81: 9 | CG81: 0.40 | CH81: 0.60 | CI81: 30.00 | CJ81: 30.00 | CK81: 30.00 | CL81: 45.00
Y82: 16 | Z82: 0.75 | AA82: 0.25 | AB82: 45.00 | AC82: 12.50 | AD82: 17.65 | AE82: 49.41 | AF82: 59.56 | AG82: 35.29 | AI82: 10 | AJ82: 0.45 | AK82: 0.55 | AL82: 22.50 | AM82: 22.00 | AN82: 22.50 | AO82: 27.50 | BU82: 16 | BV82: 0.75 | BW82: 0.25 | BX82: 18.75 | BY82: 6.25 | BZ82: 12.50 | CA82: 21.88 | CB82: 21.88 | CC82: 12.50 | CF82: 10 | CG82: 0.45 | CH82: 0.55 | CI82: 33.75 | CJ82: 27.50 | CK82: 33.75 | CL82: 41.25
B83: m | C83: =C54+H85 -> 200.00 | E83: x1 | F83: x2 | Y83: 17 | Z83: 0.80 | AA83: 0.20 | AB83: 48.00 | AC83: 10.00 | AD83: 17.65 | AE83: 51.53 | AF83: 61.18 | AG83: 35.29 | AI83: 11 | AJ83: 0.50 | AK83: 0.50 | AL83: 25.00 | AM83: 20.00 | AN83: 25.00 | AO83: 25.00 | BI83: m | BJ83: =BL85*BJ84+BM85*BJ86 -> 200.00 | BL83: x1 | BM83: x2 | BU83: 17 | BV83: 0.80 | BW83: 0.20 | BX83: 20.00 | BY83: 5.00 | BZ83: 12.50 | CA83: 22.50 | CB83: 22.50 | CC83: 12.50 | CF83: 11 | CG83: 0.50 | CH83: 0.50 | CI83: 37.50 | CJ83: 25.00 | CK83: 37.50 | CL83: 37.50
B84: p1' | C84: =C55 -> 4 | E84: ='Cobb-Douglas EcuS'!$D$26 -> 0.4 | F84: ='Cobb-Douglas EcuS'!$F$26 -> 0.6 | H84: DM=x1(dp) | I84: m' | Y84: 18 | Z84: 0.85 | AA84: 0.15 | AB84: 51.00 | AC84: 7.50 | AD84: 17.65 | AE84: 53.65 | AF84: 62.79 | AG84: 35.29 | AI84: 12 | AJ84: 0.55 | AK84: 0.45 | AL84: 27.50 | AM84: 18.00 | AN84: 27.50 | AO84: 22.50 | BI84: p1' | BJ84: =BJ55 -> 4 | BL84: =BJ85 -> 0.5 | BM84: =1-BL84 -> 0.5 | BU84: 18 | BV84: 0.85 | BW84: 0.15 | BX84: 21.25 | BY84: 3.75 | BZ84: 12.50 | CA84: 23.13 | CB84: 23.13 | CC84: 12.50 | CF84: 12 | CG84: 0.55 | CH84: 0.45 | CI84: 41.25 | CJ84: 22.50 | CK84: 41.25 | CL84: 33.75
B85: alpha | C85: ='Cobb-Douglas EcuS'!$D$24 -> 0.4 | E85: =C85*I85/C84 -> 20 | F85: =(1-C85)*C83/C86 -> 17.14 | H85: =E27*('Cobb-Douglas EcuS'!D7-'Cobb-Douglas EcuS'!D6) -> 0 | I85: ='Cobb-Douglas EcuS'!C6+'Oculto EcuS'!H85 -> 200 | Y85: 19 | Z85: 0.90 | AA85: 0.10 | AB85: 54.00 | AC85: 5.00 | AD85: 17.65 | AE85: 55.76 | AF85: 64.41 | AG85: 35.29 | AI85: 13 | AJ85: 0.60 | AK85: 0.40 | AL85: 30.00 | AM85: 16.00 | AN85: 30.00 | AO85: 20.00 | BI85: alpha | BJ85: =BJ56 -> 0.5 | BL85: =BM86*BL84/BJ84*(BJ84/BL84)^BL84*(BJ86/BM84)^BM84 -> 25.00 | BM85: =BM86*BM84/BJ86*(BJ84/BL84)^BL84*(BJ86/BM84)^BM84 -> 20.00 | BU85: 19 | BV85: 0.90 | BW85: 0.10 | BX85: 22.50 | BY85: 2.50 | BZ85: 12.50 | CA85: 23.75 | CB85: 23.75 | CC85: 12.50 | CF85: 13 | CG85: 0.60 | CH85: 0.40 | CI85: 45.00 | CJ85: 20.00 | CK85: 45.00 | CL85: 30.00
B86: p2 | C86: =C57 -> 7 | F86: =(E85^(E84))*(F85^(F84)) -> 18.23 | Y86: 20 | Z86: 0.95 | AA86: 0.05 | AB86: 57.00 | AC86: 2.50 | AD86: 17.65 | AE86: 57.88 | AF86: 66.03 | AG86: 35.29 | AI86: 14 | AJ86: 0.65 | AK86: 0.35 | AL86: 32.50 | AM86: 14.00 | AN86: 32.50 | AO86: 17.50 | BI86: p2 | BJ86: =BJ57 -> 5 | BM86: =BM28 -> 22.36 | BU86: 20 | BV86: 0.95 | BW86: 0.05 | BX86: 23.75 | BY86: 1.25 | BZ86: 12.50 | CA86: 24.38 | CB86: 24.38 | CC86: 12.50 | CF86: 14 | CG86: 0.65 | CH86: 0.35 | CI86: 48.75 | CJ86: 17.50 | CK86: 48.75 | CL86: 26.25
Y87: 21 | Z87: 1.00 | AA87: 0 | AB87: 60.00 | AC87: 0 | AD87: 17.65 | AE87: 60.00 | AF87: 67.65 | AG87: 35.29 | AI87: 15 | AJ87: 0.70 | AK87: 0.30 | AL87: 35.00 | AM87: 12.00 | AN87: 35.00 | AO87: 15.00 | BU87: 21 | BV87: 1.00 | BW87: 0 | BX87: 25.00 | BY87: 0 | BZ87: 12.50 | CA87: 25.00 | CB87: 25.00 | CC87: 12.50 | CF87: 15 | CG87: 0.70 | CH87: 0.30 | CI87: 52.50 | CJ87: 15.00 | CK87: 52.50 | CL87: 22.50
AI88: 16 | AJ88: 0.75 | AK88: 0.25 | AL88: 37.50 | AM88: 10.00 | AN88: 37.50 | AO88: 12.50 | CF88: 16 | CG88: 0.75 | CH88: 0.25 | CI88: 56.25 | CJ88: 12.50 | CK88: 56.25 | CL88: 18.75
A89: CURVA PRECIO-CONSUMO | AA89: m | AB89: =AE91 -> 300 | AI89: 17 | AJ89: 0.80 | AK89: 0.20 | AL89: 40.00 | AM89: 8.00 | AN89: 40.00 | AO89: 10.00 | BW89: m | BX89: =BX90*BX92+BX94*BX91*BX93 -> 100 | CF89: 17 | CG89: 0.80 | CH89: 0.20 | CI89: 60.00 | CJ89: 10.00 | CK89: 60.00 | CL89: 15.00
A90: CURVA UNO | C90: =E27 -> 20 | D90: =F27 -> 17.14285714 | E90: =0 -> 0 | F90: =MAX(D90:D94) -> 17.14285714 | AA90: p1 | AB90: =AB58 -> 5 | AD90: DM=x1(dp) | AE90: m' | AI90: 18 | AJ90: 0.85 | AK90: 0.15 | AL90: 42.50 | AM90: 6.00 | AN90: 42.50 | AO90: 7.50 | BW90: p1 | BX90: =BX58 -> 4 | CF90: 18 | CG90: 0.85 | CH90: 0.15 | CI90: 63.75 | CJ90: 7.50 | CK90: 63.75 | CL90: 11.25
A91: CURVA DOS | C91: =E56 -> 20 | D91: =F56 -> 17.14285714 | E91: =MAX(C90:C94) -> 20 | F91: =MAX(D90:D94) -> 17.14285714 | AA91: p2 | AB91: =AB59 -> 6 | AD91: ='CompPerf EcuS'!E6+('CompPerf EcuS'!D7-'CompPerf EcuS'!D6) -> 17.64705882 | AE91: =AD93 -> 300 | AI91: 19 | AJ91: 0.90 | AK91: 0.10 | AL91: 45.00 | AM91: 4.00 | AN91: 45.00 | AO91: 5.00 | BW91: p2 | BX91: =BX59 -> 4 | CF91: 19 | CG91: 0.90 | CH91: 0.10 | CI91: 67.50 | CJ91: 5.00 | CK91: 67.50 | CL91: 7.50
A92: CURVA TRES | C92: =E85 -> 20 | D92: =F85 -> 17.14285714 | AA92: x1 | AB92: =AB89/(AB90+(AB94*AB91)) -> 17.64705882 | AD92: =AB57-AD93 -> 0 | AI92: 20 | AJ92: 0.95 | AK92: 0.05 | AL92: 47.50 | AM92: 2.00 | AN92: 47.50 | AO92: 2.50 | BW92: x1 | BX92: =BX28 -> 12.5 | BZ92: =BX89/(BX90+BX91) -> 12.5 | CF92: 20 | CG92: 0.95 | CH92: 0.05 | CI92: 71.25 | CJ92: 2.50 | CK92: 71.25 | CL92: 3.75
A93: CURVA CUATRO | AA93: x2 | AB93: =(AB94*AB89)/(AB90+(AB94*AB91)) -> 35.29411765 | AD93: =AB28*AB58+AB29*AB59 -> 300 | AI93: 21 | AJ93: 1.00 | AK93: 0 | AL93: 50.00 | AM93: 0 | AN93: =IF($AM$96<$AL$96,(($AM$101-AO93)/($AK$103)),($AL$99*AJ93)) -> 50.00 | AO93: 0 | BW93: x2 | BX93: =BX29 -> 12.5 | CF93: 21 | CG93: 1.00 | CH93: 0 | CI93: 75.00 | CJ93: 0 | CK93: 75.00 | CL93: 0
A94: CURVA CINCO | AA94: relacion | AB94: =AB62 -> 2 | BW94: relacion | BX94: =BX62 -> 1
AJ95: m | AK95: =AP97 -> 200 | AL95: p1<p2 | BW95: k | BX95: =BX31 -> 6.25 | CG95: m | CH95: =CH96*CH99+CH97*CH100 -> 300.00 | CI95: p1<p2
AJ96: X1 | AK96: =AK95/AK99 -> 50.00 | AL96: =AK99 -> 4 | AM96: =AK103*AK100 -> 5 | AO96: DM=x1(dp) | AP96: m' | CG96: X1 | CH96: =IF(CI61<CJ61,CH98,0) -> 75.00 | CI96: =CH99 -> 4 | CJ96: =CH103*CH100 -> 6
AJ97: X2 | AK97: =AK95/AK100 -> 40.00 | AO97: =AK31*(AK29-AK64) -> 0 | AP97: =AK25-AO97 -> 200 | CG97: X2 | CH97: =IF(CI61<CJ61,0,CH98) -> 0
AJ98: K | AK98: =AM101 -> 50 | AL98: x1 | AM98: x2 | AO98: =AM63-AO99 ->  | CG98: K | CH98: =CH28 -> 75.00 | CI98: x1 | CJ98: x2
AJ99: P1 | AK99: =AK64 -> 4 | AL99: =AK95/AK99 -> 50 | AM99: =AK95/AK100 -> 40 | AO99: =AM34*AM64+AM35*AM65 -> 0 | CG99: P1 | CH99: =CH64 -> 4 | CI99: =CH98 -> 75 | CJ99: =CH98*CH103 -> 75
AJ100: P2 | AK100: =AK30 -> 5 | AL100: =AK95/AK99 -> 50 | AM100: =AK95/(AK100*(1/AK103)) -> 40 | BG100: VARIACIÓN EQUIVALENTE Y VARIACIÓN COMPENSADA | CG100: P2 | CH100: =CH65 -> 6 | CI100: =CH95/CH99 -> 75 | CJ100: =CH95/(CH100*(1/CH103)) -> 50
AJ101: X1* | AK101: =IF(AL96>AM96,AL93,0) -> 0 | AM101: =IF(AL96<AM96,AL99,AM99) -> 50 | AN101: inicial | AO101: X1* | AP101: =AK31 -> 50 | BG101: HICKS | BH101: COBB-DOUGLAS 1 | BJ101: Recta Presupuestaria | BQ101: Curva de Indiferencia | CG101: X1* | CH101: =CH96 -> 75.00 | CJ101: =IF(CI96<CJ96,CI99,CJ99) -> 75 | CK101: inicial | CL101: X1* | CM101: =CH31 -> 75
AJ102: X2* | AK102: =IF(AL96<=AM96,AM73,0) -> 40 | AO102: X2* | AP102: =AK32 -> 0 | BH102: Unidades | BI102: ponderador | BJ102: x1 | BK102: x2 | BL102: x1lin | BN102: x2lin | BP102: Cota | BQ102: x1 | BR102: x2 | CG102: X2* | CH102: =CH97 -> 0 | CL102: X2* | CM102: =CH32 -> 0
AJ103: Rel. 1 a: | AK103: =AK68 -> 1.0 | AN103: final | AO103: X1* | AP103: =AK66 -> 50 | BH103: 1 | BI103: 0 | BJ103: =$BJ$25/$BJ$26*BI103 -> 0 | BK103: =$BJ$125/$BJ$128-$BJ$126/$BJ$128*BJ103 -> 40.00 | BL103: =$BL$127 -> 25.00 | BM103: =$BM$127*BI103 -> 0 | BN103: =$BM$127*'Oculto EcuS'!BI103 -> 0 | BO103: =$BM$127 -> 20.00 | CG103: Rel. 1 a: | CH103: =CH68 -> 1.0 | CK103: final | CL103: X1* | CM103: =CH66 -> 75
AO104: X2* | AP104: =AK67 -> 0 | BH104: 2 | BI104: 0.05 | BJ104: =$BJ$125/$BJ$26*BI104 -> 2.50 | BK104: =$BJ$125/$BJ$128-$BJ$126/$BJ$128*BJ104 -> 38.00 | BL104: =$BL$127 -> 25.00 | BM104: =$BM$127*BI104 -> 1.00 | BN104: =$BM$127*'Oculto EcuS'!BI104 -> 1.00 | BO104: =$BM$127 -> 20.00 | BP104: 0.28 | BQ104: =BJ104 -> 2.50 | BR104: =($BM$128/(BQ104^($BL$126)))^(1/$BM$126) -> 200.00 | CL104: X2* | CM104: =CH67 -> 0
AN105: compesada | AO105: X1* | AP105: =AK101 -> 0 | BH105: 3 | BI105: 0.10 | BJ105: =$BJ$125/$BJ$26*BI105 -> 5.00 | BK105: 36.00 | BL105: 25.00 | BM105: 2.00 | BN105: =$BM$127*'Oculto EcuS'!BI105 -> 2.00 | BO105: 20.00 | BP105: 0.36 | BQ105: 5.00 | BR105: =($BM$128/(BQ105^($BL$126)))^(1/$BM$126) -> 100.00 | CK105: compesada | CL105: X1* | CM105: =CH101 -> 75
AO106: X2* | AP106: =AK102 -> 40 | BH106: 4 | BI106: 0.15 | BJ106: 7.50 | BK106: 34.00 | BL106: 25.00 | BM106: 3.00 | BN106: =$BM$127*'Oculto EcuS'!BI106 -> 3.00 | BO106: 20.00 | BP106: 0.44 | BQ106: 7.50 | BR106: 66.67 | CL106: X2* | CM106: =CH102 -> 0
BH107: 5 | BI107: 0.20 | BJ107: 10.00 | BK107: 32.00 | BL107: 25.00 | BM107: 4.00 | BN107: =$BM$127*'Oculto EcuS'!BI107 -> 4.00 | BO107: 20.00 | BP107: 0.52 | BQ107: 10.00 | BR107: 50.00
AO108: sust | AP108: =AP103-AP105 -> 50 | BH108: 6 | BI108: 0.25 | BJ108: 12.50 | BK108: 30.00 | BL108: 25.00 | BM108: 5.00 | BN108: =$BM$127*'Oculto EcuS'!BI108 -> 5.00 | BO108: 20.00 | BP108: 0.6 | BQ108: 12.50 | BR108: 40.00 | CL108: sust | CM108: =CM103-CM105 -> 0
AO109: ing | AP109: =AP105-AP101 -> -50 | BH109: 7 | BI109: 0.30 | BJ109: 15.00 | BK109: 28.00 | BL109: 25.00 | BM109: 6.00 | BN109: =$BM$127*'Oculto EcuS'!BI109 -> 6.00 | BO109: 20.00 | BP109: 0.68 | BQ109: 15.00 | BR109: 33.33 | CL109: ing | CM109: =CM101-CM105 -> 0
AO110: total | AP110: =AP103-AP101 -> 0 | BH110: 8 | BI110: 0.35 | BJ110: 17.50 | BK110: 26.00 | BL110: 25.00 | BM110: 7.00 | BN110: =$BM$127*'Oculto EcuS'!BI110 -> 7.00 | BO110: 20.00 | BP110: 0.76 | BQ110: 17.50 | BR110: 28.57 | CL110: total | CM110: =CM108+CM109 -> 0
BH111: 9 | BI111: 0.40 | BJ111: 20.00 | BK111: 24.00 | BL111: 25.00 | BM111: 8.00 | BN111: =$BM$127*'Oculto EcuS'!BI111 -> 8.00 | BO111: 20.00 | BP111: 0.84 | BQ111: 20.00 | BR111: 25.00
BH112: 10 | BI112: 0.45 | BJ112: 22.50 | BK112: 22.00 | BL112: 25.00 | BM112: 9.00 | BN112: =$BM$127*'Oculto EcuS'!BI112 -> 9.00 | BO112: 20.00 | BP112: 0.92 | BQ112: 22.50 | BR112: 22.22
BH113: 11 | BI113: 0.50 | BJ113: 25.00 | BK113: 20.00 | BL113: 25.00 | BM113: 10.00 | BN113: =$BM$127*'Oculto EcuS'!BI113 -> 10.00 | BO113: 20.00 | BP113: 1 | BQ113: 25.00 | BR113: 20.00
BH114: 12 | BI114: 0.55 | BJ114: 27.50 | BK114: 18.00 | BL114: 25.00 | BM114: 11.00 | BN114: =$BM$127*'Oculto EcuS'!BI114 -> 11.00 | BO114: 20.00 | BP114: 1.08 | BQ114: 27.50 | BR114: 18.18
BH115: 13 | BI115: 0.60 | BJ115: 30.00 | BK115: 16.00 | BL115: 25.00 | BM115: 12.00 | BN115: =$BM$127*'Oculto EcuS'!BI115 -> 12.00 | BO115: 20.00 | BP115: 1.16 | BQ115: 30.00 | BR115: 16.67
BH116: 14 | BI116: 0.65 | BJ116: 32.50 | BK116: 14.00 | BL116: 25.00 | BM116: 13.00 | BN116: =$BM$127*'Oculto EcuS'!BI116 -> 13.00 | BO116: 20.00 | BP116: 1.24 | BQ116: 32.50 | BR116: 15.38
BH117: 15 | BI117: 0.70 | BJ117: 35.00 | BK117: 12.00 | BL117: 25.00 | BM117: 14.00 | BN117: =$BM$127*'Oculto EcuS'!BI117 -> 14.00 | BO117: 20.00 | BP117: 1.32 | BQ117: 35.00 | BR117: 14.29
BH118: 16 | BI118: 0.75 | BJ118: 37.50 | BK118: 10.00 | BL118: 25.00 | BM118: 15.00 | BN118: =$BM$127*'Oculto EcuS'!BI118 -> 15.00 | BO118: 20.00 | BP118: 1.4 | BQ118: 37.50 | BR118: 13.33
BH119: 17 | BI119: 0.80 | BJ119: 40.00 | BK119: 8.00 | BL119: 25.00 | BM119: 16.00 | BN119: =$BM$127*'Oculto EcuS'!BI119 -> 16.00 | BO119: 20.00 | BP119: 1.48 | BQ119: 40.00 | BR119: 12.50
BH120: 18 | BI120: 0.85 | BJ120: 42.50 | BK120: 6.00 | BL120: 25.00 | BM120: 17.00 | BN120: =$BM$127*'Oculto EcuS'!BI120 -> 17.00 | BO120: 20.00 | BP120: 1.56 | BQ120: 42.50 | BR120: 11.76
BH121: 19 | BI121: 0.90 | BJ121: 45.00 | BK121: 4.00 | BL121: 25.00 | BM121: 18.00 | BN121: =$BM$127*'Oculto EcuS'!BI121 -> 18.00 | BO121: 20.00 | BP121: 1.64 | BQ121: 45.00 | BR121: 11.11
BH122: 20 | BI122: 0.95 | BJ122: 47.50 | BK122: 2.00 | BL122: 25.00 | BM122: 19.00 | BN122: =$BM$127*'Oculto EcuS'!BI122 -> 19.00 | BO122: 20.00 | BP122: 1.72 | BQ122: 47.50 | BR122: 10.53
BH123: 21 | BI123: 1.00 | BJ123: 50.00 | BK123: 0 | BL123: 25.00 | BM123: 20.00 | BN123: =$BM$127*'Oculto EcuS'!BI123 -> 20.00 | BO123: 20.00 | BP123: 1.8 | BQ123: 50.00 | BR123: 10.00
BI125: m | BJ125: ='Min CVyVE'!C6 -> 200.00 | BL125: x1 | BM125: x2
BI126: p1 | BJ126: ='Min CVyVE'!D6 -> 4 | BL126: =BJ127 -> 0.5 | BM126: =1-BL126 -> 0.5
BI127: alpha | BJ127: ='Min CVyVE'!D24 -> 0.5 | BL127: =BJ127*BJ125/BJ126 -> 25.00 | BM127: =(1-BJ127)*BJ125/BJ128 -> 20.00
BI128: p2 | BJ128: ='Min CVyVE'!F6 -> 5 | BM128: =(BL127^(BL126))*(BM127^(BM126)) -> 22.36067977
BH130: COBB-DOUGLAS 2 | BJ130: Recta Presupuestaria | BQ130: Curva de Indiferencia
BH131: Unidades | BI131: ponderador | BJ131: x1 | BK131: x2 | BL131: x3lin | BN131: x4lin | BP131: Cota | BQ131: x1 | BR131: x2
BH132: 1 | BI132: 0 | BJ132: =$BJ$154/$BJ$155*BI132 -> 0 | BK132: =$BJ$154/$BJ$157-$BJ$155/$BJ$157*BJ132 -> 40.00 | BL132: =$BL$156 -> 25.00 | BM132: =$BM$156*BI132 -> 0 | BN132: =$BL$156*'Oculto EcuS'!BI132 -> 0 | BO132: =$BM$156 -> 20.00
BH133: 2 | BI133: 0.05 | BJ133: =$BJ$154/$BJ$155*BI133 -> 2.50 | BK133: =$BJ$154/$BJ$157-$BJ$155/$BJ$157*BJ133 -> 38.00 | BL133: =$BL$156 -> 25.00 | BM133: =$BM$156*BI133 -> 1.00 | BN133: =$BL$156*'Oculto EcuS'!BI133 -> 1.25 | BO133: =$BM$156 -> 20.00 | BP133: 0.28 | BQ133: =BJ133 -> 2.50 | BR133: =($BM$157/(BQ133^($BL$155)))^(1/$BM$155) -> 200.00
BH134: 3 | BI134: 0.10 | BJ134: 5.00 | BK134: 36.00 | BL134: 25.00 | BM134: 2.00 | BN134: =$BL$156*'Oculto EcuS'!BI134 -> 2.50 | BO134: 20.00 | BP134: 0.36 | BQ134: =BJ134 -> 5.00 | BR134: =($BM$157/(BQ134^($BL$155)))^(1/$BM$155) -> 100.00
BH135: 4 | BI135: 0.15 | BJ135: 7.50 | BK135: 34.00 | BL135: 25.00 | BM135: 3.00 | BN135: =$BL$156*'Oculto EcuS'!BI135 -> 3.75 | BO135: 20.00 | BP135: 0.44 | BQ135: 7.50 | BR135: 66.67
BH136: 5 | BI136: 0.20 | BJ136: 10.00 | BK136: 32.00 | BL136: 25.00 | BM136: 4.00 | BN136: =$BL$156*'Oculto EcuS'!BI136 -> 5.00 | BO136: 20.00 | BP136: 0.52 | BQ136: 10.00 | BR136: 50.00
BH137: 6 | BI137: 0.25 | BJ137: 12.50 | BK137: 30.00 | BL137: 25.00 | BM137: 5.00 | BN137: =$BL$156*'Oculto EcuS'!BI137 -> 6.25 | BO137: 20.00 | BP137: 0.6 | BQ137: 12.50 | BR137: 40.00
BH138: 7 | BI138: 0.30 | BJ138: 15.00 | BK138: 28.00 | BL138: 25.00 | BM138: 6.00 | BN138: =$BL$156*'Oculto EcuS'!BI138 -> 7.50 | BO138: 20.00 | BP138: 0.68 | BQ138: 15.00 | BR138: 33.33
BH139: 8 | BI139: 0.35 | BJ139: 17.50 | BK139: 26.00 | BL139: 25.00 | BM139: 7.00 | BN139: =$BL$156*'Oculto EcuS'!BI139 -> 8.75 | BO139: 20.00 | BP139: 0.76 | BQ139: 17.50 | BR139: 28.57
BH140: 9 | BI140: 0.40 | BJ140: 20.00 | BK140: 24.00 | BL140: 25.00 | BM140: 8.00 | BN140: =$BL$156*'Oculto EcuS'!BI140 -> 10.00 | BO140: 20.00 | BP140: 0.84 | BQ140: 20.00 | BR140: 25.00
BH141: 10 | BI141: 0.45 | BJ141: 22.50 | BK141: 22.00 | BL141: 25.00 | BM141: 9.00 | BN141: =$BL$156*'Oculto EcuS'!BI141 -> 11.25 | BO141: 20.00 | BP141: 0.92 | BQ141: 22.50 | BR141: 22.22
BH142: 11 | BI142: 0.50 | BJ142: 25.00 | BK142: 20.00 | BL142: 25.00 | BM142: 10.00 | BN142: =$BL$156*'Oculto EcuS'!BI142 -> 12.50 | BO142: 20.00 | BP142: 1 | BQ142: 25.00 | BR142: 20.00
BH143: 12 | BI143: 0.55 | BJ143: 27.50 | BK143: 18.00 | BL143: 25.00 | BM143: 11.00 | BN143: =$BL$156*'Oculto EcuS'!BI143 -> 13.75 | BO143: 20.00 | BP143: 1.08 | BQ143: 27.50 | BR143: 18.18
BH144: 13 | BI144: 0.60 | BJ144: 30.00 | BK144: 16.00 | BL144: 25.00 | BM144: 12.00 | BN144: =$BL$156*'Oculto EcuS'!BI144 -> 15.00 | BO144: 20.00 | BP144: 1.16 | BQ144: 30.00 | BR144: 16.67
BH145: 14 | BI145: 0.65 | BJ145: 32.50 | BK145: 14.00 | BL145: 25.00 | BM145: 13.00 | BN145: =$BL$156*'Oculto EcuS'!BI145 -> 16.25 | BO145: 20.00 | BP145: 1.24 | BQ145: 32.50 | BR145: 15.38
BH146: 15 | BI146: 0.70 | BJ146: 35.00 | BK146: 12.00 | BL146: 25.00 | BM146: 14.00 | BN146: =$BL$156*'Oculto EcuS'!BI146 -> 17.50 | BO146: 20.00 | BP146: 1.32 | BQ146: 35.00 | BR146: 14.29
BH147: 16 | BI147: 0.75 | BJ147: 37.50 | BK147: 10.00 | BL147: 25.00 | BM147: 15.00 | BN147: =$BL$156*'Oculto EcuS'!BI147 -> 18.75 | BO147: 20.00 | BP147: 1.4 | BQ147: 37.50 | BR147: 13.33
BH148: 17 | BI148: 0.80 | BJ148: 40.00 | BK148: 8.00 | BL148: 25.00 | BM148: 16.00 | BN148: =$BL$156*'Oculto EcuS'!BI148 -> 20.00 | BO148: 20.00 | BP148: 1.48 | BQ148: 40.00 | BR148: 12.50
BH149: 18 | BI149: 0.85 | BJ149: 42.50 | BK149: 6.00 | BL149: 25.00 | BM149: 17.00 | BN149: =$BL$156*'Oculto EcuS'!BI149 -> 21.25 | BO149: 20.00 | BP149: 1.56 | BQ149: 42.50 | BR149: 11.76
BH150: 19 | BI150: 0.90 | BJ150: 45.00 | BK150: 4.00 | BL150: 25.00 | BM150: 18.00 | BN150: =$BL$156*'Oculto EcuS'!BI150 -> 22.50 | BO150: 20.00 | BP150: 1.64 | BQ150: 45.00 | BR150: 11.11
BH151: 20 | BI151: 0.95 | BJ151: 47.50 | BK151: 2.00 | BL151: 25.00 | BM151: 19.00 | BN151: =$BL$156*'Oculto EcuS'!BI151 -> 23.75 | BO151: 20.00 | BP151: 1.72 | BQ151: 47.50 | BR151: 10.53
BH152: 21 | BI152: 1.00 | BJ152: 50.00 | BK152: 0 | BL152: 25.00 | BM152: 20.00 | BN152: =$BL$156*'Oculto EcuS'!BI152 -> 25.00 | BO152: 20.00 | BP152: 1.8 | BQ152: 50.00 | BR152: 10.00
BI154: m | BJ154: =BJ125 -> 200.00 | BL154: x1 | BM154: x2
BI155: p1' | BJ155: ='Min CVyVE'!D7 -> 4 | BL155: =BJ156 -> 0.5 | BM155: =1-BL155 -> 0.5
BI156: alpha | BJ156: =BJ127 -> 0.5 | BL156: =BJ156*BJ154/BJ155 -> 25.00 | BM156: =(1-BJ156)*BJ154/BJ157 -> 20.00
BI157: p2 | BJ157: =BJ128 -> 5 | BM157: =(BL156^(BL155))*(BM156^(BM155)) -> 22.36067977
BH159: compensada | BJ159: Recta Presupuestaria | BQ159: Curva de Indiferencia
BH160: Unidades | BI160: ponderador | BJ160: x1 | BK160: x2 | BL160: x5lin | BN160: x6lin | BP160: Cota | BQ160: x1 | BR160: x2
BH161: 1 | BI161: 0 | BJ161: =$BJ$183/$BJ$184*BI161 -> 0 | BK161: =$BJ$183/$BJ$186-$BJ$184/$BJ$186*BJ161 -> 40.00 | BL161: =$BL$185 -> 25.00 | BM161: =$BM$185*BI161 -> 0 | BN161: =$BL$185*BI161 -> 0 | BO161: =$BM$185 -> 20.00
BH162: 2 | BI162: 0.05 | BJ162: =$BJ$183/$BJ$184*BI162 -> 2.50 | BK162: =$BJ$183/$BJ$186-$BJ$184/$BJ$186*BJ162 -> 38.00 | BL162: =$BL$185 -> 25.00 | BM162: =$BM$185*BI162 -> 1.00 | BN162: =$BL$185*BI162 -> 1.25 | BO162: =$BM$185 -> 20.00 | BP162: 0.28 | BQ162: =BJ162 -> 2.50 | BR162: =($BM$186/(BQ162^($BL$184)))^(1/$BM$184) -> 200.00
BH163: 3 | BI163: 0.10 | BJ163: 5.00 | BK163: 36.00 | BL163: 25.00 | BM163: 2.00 | BN163: 2.50 | BO163: 20.00 | BP163: 0.36 | BQ163: =BJ163 -> 5.00 | BR163: =($BM$186/(BQ163^($BL$184)))^(1/$BM$184) -> 100.00
BH164: 4 | BI164: 0.15 | BJ164: 7.50 | BK164: 34.00 | BL164: 25.00 | BM164: 3.00 | BN164: 3.75 | BO164: 20.00 | BP164: 0.44 | BQ164: 7.50 | BR164: 66.67
BH165: 5 | BI165: 0.20 | BJ165: 10.00 | BK165: 32.00 | BL165: 25.00 | BM165: 4.00 | BN165: 5.00 | BO165: 20.00 | BP165: 0.52 | BQ165: 10.00 | BR165: 50.00
BH166: 6 | BI166: 0.25 | BJ166: 12.50 | BK166: 30.00 | BL166: 25.00 | BM166: 5.00 | BN166: 6.25 | BO166: 20.00 | BP166: 0.6 | BQ166: 12.50 | BR166: 40.00
BH167: 7 | BI167: 0.30 | BJ167: 15.00 | BK167: 28.00 | BL167: 25.00 | BM167: 6.00 | BN167: 7.50 | BO167: 20.00 | BP167: 0.68 | BQ167: 15.00 | BR167: 33.33
BH168: 8 | BI168: 0.35 | BJ168: 17.50 | BK168: 26.00 | BL168: 25.00 | BM168: 7.00 | BN168: 8.75 | BO168: 20.00 | BP168: 0.76 | BQ168: 17.50 | BR168: 28.57
BH169: 9 | BI169: 0.40 | BJ169: 20.00 | BK169: 24.00 | BL169: 25.00 | BM169: 8.00 | BN169: 10.00 | BO169: 20.00 | BP169: 0.84 | BQ169: 20.00 | BR169: 25.00
BH170: 10 | BI170: 0.45 | BJ170: 22.50 | BK170: 22.00 | BL170: 25.00 | BM170: 9.00 | BN170: 11.25 | BO170: 20.00 | BP170: 0.92 | BQ170: 22.50 | BR170: 22.22
BH171: 11 | BI171: 0.50 | BJ171: 25.00 | BK171: 20.00 | BL171: 25.00 | BM171: 10.00 | BN171: 12.50 | BO171: 20.00 | BP171: 1 | BQ171: 25.00 | BR171: 20.00
BH172: 12 | BI172: 0.55 | BJ172: 27.50 | BK172: 18.00 | BL172: 25.00 | BM172: 11.00 | BN172: 13.75 | BO172: 20.00 | BP172: 1.08 | BQ172: 27.50 | BR172: 18.18
BH173: 13 | BI173: 0.60 | BJ173: 30.00 | BK173: 16.00 | BL173: 25.00 | BM173: 12.00 | BN173: 15.00 | BO173: 20.00 | BP173: 1.16 | BQ173: 30.00 | BR173: 16.67
BH174: 14 | BI174: 0.65 | BJ174: 32.50 | BK174: 14.00 | BL174: 25.00 | BM174: 13.00 | BN174: 16.25 | BO174: 20.00 | BP174: 1.24 | BQ174: 32.50 | BR174: 15.38
BH175: 15 | BI175: 0.70 | BJ175: 35.00 | BK175: 12.00 | BL175: 25.00 | BM175: 14.00 | BN175: 17.50 | BO175: 20.00 | BP175: 1.32 | BQ175: 35.00 | BR175: 14.29
BH176: 16 | BI176: 0.75 | BJ176: 37.50 | BK176: 10.00 | BL176: 25.00 | BM176: 15.00 | BN176: 18.75 | BO176: 20.00 | BP176: 1.4 | BQ176: 37.50 | BR176: 13.33
BH177: 17 | BI177: 0.80 | BJ177: 40.00 | BK177: 8.00 | BL177: 25.00 | BM177: 16.00 | BN177: 20.00 | BO177: 20.00 | BP177: 1.48 | BQ177: 40.00 | BR177: 12.50
BH178: 18 | BI178: 0.85 | BJ178: 42.50 | BK178: 6.00 | BL178: 25.00 | BM178: 17.00 | BN178: 21.25 | BO178: 20.00 | BP178: 1.56 | BQ178: 42.50 | BR178: 11.76
BH179: 19 | BI179: 0.90 | BJ179: 45.00 | BK179: 4.00 | BL179: 25.00 | BM179: 18.00 | BN179: 22.50 | BO179: 20.00 | BP179: 1.64 | BQ179: 45.00 | BR179: 11.11
BH180: 20 | BI180: 0.95 | BJ180: 47.50 | BK180: 2.00 | BL180: 25.00 | BM180: 19.00 | BN180: 23.75 | BO180: 20.00 | BP180: 1.72 | BQ180: 47.50 | BR180: 10.53
BH181: 21 | BI181: 1.00 | BJ181: 50.00 | BK181: 0 | BL181: 25.00 | BM181: 20.00 | BN181: 25.00 | BO181: 20.00 | BP181: 1.8 | BQ181: 50.00 | BR181: 10.00
BI183: m | BJ183: =BL185*BJ184+BM185*BJ186 -> 200.00 | BL183: x1 | BM183: x2
BI184: p1' | BJ184: =BJ155 -> 4 | BL184: =BJ185 -> 0.5 | BM184: =1-BL184 -> 0.5
BI185: alpha | BJ185: =BJ156 -> 0.5 | BL185: =BM186*BL184/BJ184*(BJ184/BL184)^BL184*(BJ186/BM184)^BM184 -> 25.00 | BM185: =BM186*BM184/BJ186*(BJ184/BL184)^BL184*(BJ186/BM184)^BM184 -> 20.00
BI186: p2 | BJ186: =BJ157 -> 5 | BM186: =BM128 -> 22.36
BH188: equivalente | BJ188: Recta Presupuestaria | BQ188: Curva de Indiferencia
BH189: Unidades | BI189: ponderador | BJ189: x1 | BK189: x2 | BL189: x5lin | BN189: x6lin | BP189: Cota | BQ189: x1 | BR189: x2
BH190: 1 | BI190: 0 | BJ190: =$BJ$212/$BJ$213*BI190 -> 0 | BK190: =$BJ$212/$BJ$215-$BJ$213/$BJ$215*BJ190 -> 40.00 | BL190: =$BL$214 -> 25.00 | BM190: =$BM$214*BI190 -> 0 | BN190: =$BL$214*BI190 -> 0 | BO190: =$BM$214 -> 20.00
BH191: 2 | BI191: 0.05 | BJ191: =$BJ$212/$BJ$213*BI191 -> 2.50 | BK191: =$BJ$212/$BJ$215-$BJ$213/$BJ$215*BJ191 -> 38.00 | BL191: =$BL$214 -> 25.00 | BM191: =$BM$214*BI191 -> 1.00 | BN191: =$BL$214*BI191 -> 1.25 | BO191: =$BM$214 -> 20.00 | BP191: 0.28 | BQ191: =BJ191 -> 2.50 | BR191: =($BM$215/(BQ191^($BL$213)))^(1/$BM$213) -> 200.00
BH192: 3 | BI192: 0.10 | BJ192: 5.00 | BK192: 36.00 | BL192: 25.00 | BM192: 2.00 | BN192: 2.50 | BO192: 20.00 | BP192: 0.36 | BQ192: =BJ192 -> 5.00 | BR192: =($BM$215/(BQ192^($BL$213)))^(1/$BM$213) -> 100.00
BH193: 4 | BI193: 0.15 | BJ193: 7.50 | BK193: 34.00 | BL193: 25.00 | BM193: 3.00 | BN193: 3.75 | BO193: 20.00 | BP193: 0.44 | BQ193: 7.50 | BR193: 66.67
BH194: 5 | BI194: 0.20 | BJ194: 10.00 | BK194: 32.00 | BL194: 25.00 | BM194: 4.00 | BN194: 5.00 | BO194: 20.00 | BP194: 0.52 | BQ194: 10.00 | BR194: 50.00
BH195: 6 | BI195: 0.25 | BJ195: 12.50 | BK195: 30.00 | BL195: 25.00 | BM195: 5.00 | BN195: 6.25 | BO195: 20.00 | BP195: 0.6 | BQ195: 12.50 | BR195: 40.00
BH196: 7 | BI196: 0.30 | BJ196: 15.00 | BK196: 28.00 | BL196: 25.00 | BM196: 6.00 | BN196: 7.50 | BO196: 20.00 | BP196: 0.68 | BQ196: 15.00 | BR196: 33.33
BH197: 8 | BI197: 0.35 | BJ197: 17.50 | BK197: 26.00 | BL197: 25.00 | BM197: 7.00 | BN197: 8.75 | BO197: 20.00 | BP197: 0.76 | BQ197: 17.50 | BR197: 28.57
BH198: 9 | BI198: 0.40 | BJ198: 20.00 | BK198: 24.00 | BL198: 25.00 | BM198: 8.00 | BN198: 10.00 | BO198: 20.00 | BP198: 0.84 | BQ198: 20.00 | BR198: 25.00
BH199: 10 | BI199: 0.45 | BJ199: 22.50 | BK199: 22.00 | BL199: 25.00 | BM199: 9.00 | BN199: 11.25 | BO199: 20.00 | BP199: 0.92 | BQ199: 22.50 | BR199: 22.22
BH200: 11 | BI200: 0.50 | BJ200: 25.00 | BK200: 20.00 | BL200: 25.00 | BM200: 10.00 | BN200: 12.50 | BO200: 20.00 | BP200: 1 | BQ200: 25.00 | BR200: 20.00
BH201: 12 | BI201: 0.55 | BJ201: 27.50 | BK201: 18.00 | BL201: 25.00 | BM201: 11.00 | BN201: 13.75 | BO201: 20.00 | BP201: 1.08 | BQ201: 27.50 | BR201: 18.18
BH202: 13 | BI202: 0.60 | BJ202: 30.00 | BK202: 16.00 | BL202: 25.00 | BM202: 12.00 | BN202: 15.00 | BO202: 20.00 | BP202: 1.16 | BQ202: 30.00 | BR202: 16.67
BH203: 14 | BI203: 0.65 | BJ203: 32.50 | BK203: 14.00 | BL203: 25.00 | BM203: 13.00 | BN203: 16.25 | BO203: 20.00 | BP203: 1.24 | BQ203: 32.50 | BR203: 15.38
BH204: 15 | BI204: 0.70 | BJ204: 35.00 | BK204: 12.00 | BL204: 25.00 | BM204: 14.00 | BN204: 17.50 | BO204: 20.00 | BP204: 1.32 | BQ204: 35.00 | BR204: 14.29
BH205: 16 | BI205: 0.75 | BJ205: 37.50 | BK205: 10.00 | BL205: 25.00 | BM205: 15.00 | BN205: 18.75 | BO205: 20.00 | BP205: 1.4 | BQ205: 37.50 | BR205: 13.33
BH206: 17 | BI206: 0.80 | BJ206: 40.00 | BK206: 8.00 | BL206: 25.00 | BM206: 16.00 | BN206: 20.00 | BO206: 20.00 | BP206: 1.48 | BQ206: 40.00 | BR206: 12.50
BH207: 18 | BI207: 0.85 | BJ207: 42.50 | BK207: 6.00 | BL207: 25.00 | BM207: 17.00 | BN207: 21.25 | BO207: 20.00 | BP207: 1.56 | BQ207: 42.50 | BR207: 11.76
... 7 more rows

Sheet Cobb-Douglas EcuS (hidden)
A1: IDENTIDAD DE SLUTSKY
A3: COBB-DOUGLAS
C4: RECTA PRESUPUESTAL
C5: m | D5: p1 | E5: x1 | F5: p2 | G5: x2
B6: Inicial | C6: 200.0 | D6: 4.0 | E6: =F13 -> 20.0 | F6: 7.0 | G6: =C13 -> 17.1
B7: Final | C7: =$C$6 -> 200.0 | D7: =D6 -> 4.0 | E7: =F14 -> 20.0 | F7: =$F$6 -> 7.0 | G7: =C14 -> 17.1
B8: Compensada | C8: ='Oculto EcuS'!I85 -> 200.0 | D8: =D7 -> 4.0 | E8: =F15 -> 20.0 | F8: =$F$6 -> 7.0 | G8: =C15 -> 17.1
C9: Inserte los datos correspondientes
C11: PARÁMETROS DE LA RECTA PRESUPUESTAL
C12: x2 | D12: b0 | E12: b1 | F12: x1
B13: Inicial | C13: =D13+(E13*F13) -> 17.1 | D13: =C6/F6 -> 28.6 | E13: =D6/F6*-1 -> -0.6 | F13: ='Oculto EcuS'!E27 -> 20.0
B14: Final | C14: =D14+(E14*F14) -> 17.1 | D14: =C7/F7 -> 28.6 | E14: =D7/F7*-1 -> -0.6 | F14: ='Oculto EcuS'!E56 -> 20.0
B15: Compensada | C15: =D15+(E15*F15) -> 17.1 | D15: =C8/F8 -> 28.6 | E15: =D8/F8*-1 -> -0.6 | F15: ='Oculto EcuS'!E85 -> 20.0
D17: Inicial | E17: Final | F17: Compensada
B18: Máxima cantidad de x1 | D18: =C6/D6 -> 50.0 | E18: =C7/D7 -> 50.0 | F18: =C8/D8 -> 50.0
B19: Máxima cantidad de x2 | D19: =C6/F6 -> 28.6 | E19: =C7/F7 -> 28.6 | F19: =C8/F8 -> 28.6
B20: Precio relativo (<0) | D20: =(D6/F6)*(-1) -> -0.6 | E20: =(D7/F7)*(-1) -> -0.6 | F20: =(D8/F8)*(-1) -> -0.6
C22: PARÁMETROS DE FUNCIÓN COBB-DOUGLAS
C23: k | D23: a | E23: x1* | F23: 1-a | G23: x2*
B24: Inicial | C24: ='Oculto EcuS'!F28 -> 18.2 | D24: 0.4 | E24: ='Oculto EcuS'!$E$27 -> 20.0 | F24: =1-D24 -> 0.6 | G24: ='Oculto EcuS'!F27 -> 17.1
B25: Final | C25: ='Oculto EcuS'!F57 -> 18.2 | D25: =D24 -> 0.4 | E25: ='Oculto EcuS'!$E$56 -> 20.0 | F25: =1-D25 -> 0.6 | G25: ='Oculto EcuS'!$F$56 -> 17.1
B26: Compensada | C26: ='Oculto EcuS'!F86 -> 18.2 | D26: =D25 -> 0.4 | E26: ='Oculto EcuS'!$E$85 -> 20.0 | F26: =1-D26 -> 0.6 | G26: ='Oculto EcuS'!$F$85 -> 17.1
B29: Títulos | E29: Efecto sustitución | G29: =E26-E24 -> 0.0
B30: Resultados | E30: Efecto ingreso | G30: =E25-E26 -> 0.0
B31: Insertar datos | E31: Efecto total | G31: =G30+G29 -> 0.0
B32: Cantidad de equilibrio

Sheet CompPerf EcuS (hidden)
A1: IDENTIDAD DE SLUTSKY
A3: COMPLEMENTOS PERFECTOS
C4: RECTA PRESUPUESTAL
C5: m | D5: p1 | E5: x1 | F5: p2 | G5: x2
B6: Inicial | C6: 300.0 | D6: 5.0 | E6: =D24 -> 17.6 | F6: 6.0 | G6: =E24 -> 35.3
B7: Final | C7: =C6 -> 300.0 | D7: =D6 -> 5.0 | E7: =D25 -> 17.6 | F7: =F6 -> 6.0 | G7: =E25 -> 35.3
B8: Compensada | C8: ='Oculto EcuS'!AE91 -> 300.0 | D8: =D7 -> 5.0 | E8: =D26 -> 17.6 | F8: =F7 -> 6.0 | G8: =E26 -> 35.3
B9: Inserte los datos correspondientes | E9: Complementario 1 a: | G9: 2.0
C11: PARÁMETROS DE LA RECTA PRESUPUESTAL
C12: x2 | D12: b0 | E12: b1 | F12: x1
B13: Inicial | C13: =D13+(E13*F13) -> 35.3 | D13: =C6/F6 -> 50.0 | E13: =D6/F6*-1 -> -0.8 | F13: =E6 -> 17.6
B14: Final | C14: =E25 -> 35.3 | D14: =C7/F7 -> 50.0 | E14: =D7/F7*-1 -> -0.8 | F14: =D25 -> 17.6
B15: Compensada | C15: =E26 -> 35.3 | D15: =C8/F8 -> 50.0 | E15: =D8/F8*-1 -> -0.8 | F15: =D26 -> 17.6
D17: Inicial | E17: Final | F17: Compensada
B18: Máxima cantidad de x1 | D18: =C6/D6 -> 60.0 | E18: =C7/D7 -> 60.0 | F18: =C8/D8 -> 60.0
B19: Máxima cantidad de x2 | D19: =C6/F6 -> 50.0 | E19: =C7/F7 -> 50.0 | F19: =C8/F8 -> 50.0
B20: Precio relativo (<0) | D20: =E13 -> -0.8 | E20: =E14 -> -0.8 | F20: =E15 -> -0.8
C22: PARÁMETROS DE LA CURVA DE INDIFERENCIA
C23: k | D23: x1* | E23: x2*
B24: Inicial | C24: =MAX('Oculto EcuS'!AB23,'Oculto EcuS'!AC3) -> 60.0 | D24: ='Oculto EcuS'!AB28 -> 17.6 | E24: ='Oculto EcuS'!AB29 -> 35.3
B25: Final | C25: =MAX('Oculto EcuS'!AB55,'Oculto EcuS'!AC55) -> 60.0 | D25: ='Oculto EcuS'!AB60 -> 17.6 | E25: ='Oculto EcuS'!AB61 -> 35.3
B26: Compensada | C26: =MAX('Oculto EcuS'!AB87,'Oculto EcuS'!AC87) -> 60.0 | D26: ='Oculto EcuS'!AB92 -> 17.6 | E26: ='Oculto EcuS'!AB93 -> 35.3
B29: Títulos | E29: Efecto sustitución | G29: =D26-D24 -> 0.0
B30: Resultados | E30: Efecto ingreso | G30: =D25-D26 -> 0.0
B31: Insertar datos | E31: Efecto total | G31: =G30+G29 -> 0.0
B32: Cantidad de equilibrio

Sheet Cuasilineales EcuS (hidden)
A1: IDENTIDAD DE SLUTSKY
A3: CUASILINEALES
C4: RECTA PRESUPUESTAL
C5: m | D5: p1 | E5: x1 | F5: p2 | G5: x2
B6: Inicial | C6: 300.0 | D6: 3.0 | E6: =F13 -> 33.3 | F6: 100.0 | G6: =C13 -> 2.0
B7: Final | C7: =$C$6 -> 300.0 | D7: =D6 -> 3.0 | E7: =F14 -> 33.3 | F7: =$F$6 -> 100.0 | G7: =C14 -> 2.0
B8: Compensada | C8: ='Oculto EcuS'!BE80 -> 300.0 | D8: =D7 -> 3.0 | E8: =F15 -> 33.3 | F8: =$F$6 -> 100.0 | G8: =C15 -> 2.0
C9: Inserte los datos correspondientes
C11: PARÁMETROS DE LA RECTA PRESUPUESTAL
C12: x2 | D12: b0 | E12: b1 | F12: x1
B13: Inicial | C13: ='Oculto EcuS'!BB26 -> 2.0 | D13: =C6/F6 -> 3.0 | E13: =D6/F6*-1 -> -0.0 | F13: ='Oculto EcuS'!BA26 -> 33.3
B14: Final | C14: ='Oculto EcuS'!BB53 -> 2.0 | D14: =C7/F7 -> 3.0 | E14: =D7/F7*-1 -> -0.0 | F14: ='Oculto EcuS'!BA53 -> 33.3
B15: Compensada | C15: ='Oculto EcuS'!BB80 -> 2.0 | D15: =C8/F8 -> 3.0 | E15: =D8/F8*-1 -> -0.0 | F15: ='Oculto EcuS'!BA80 -> 33.3
D17: Inicial | E17: Final | F17: Compensada
B18: Máxima cantidad de x1 | D18: =C6/D6 -> 100.0 | E18: =C7/D7 -> 100.0 | F18: =C8/D8 -> 100.0
B19: Máxima cantidad de x2 | D19: =C6/F6 -> 3.0 | E19: =C7/F7 -> 3.0 | F19: =C8/F8 -> 3.0
B20: Precio relativo (<0) | D20: =(D6/F6)*(-1) -> -0.0 | E20: =(D7/F7)*(-1) -> -0.0 | F20: =(D8/F8)*(-1) -> -0.0
C22: PARÁMETROS DE FUNCIÓN CUASILINEAL
C23: k | D23: x1* | E23: x2*
B24: Inicial | C24: ='Oculto EcuS'!AZ26 -> 5.5 | D24: ='Oculto EcuS'!BA26 -> 33.3 | E24: ='Oculto EcuS'!BB26 -> 2.0
B25: Final | C25: ='Oculto EcuS'!AZ53 -> 5.5 | D25: ='Oculto EcuS'!BA53 -> 33.3 | E25: ='Oculto EcuS'!BB53 -> 2.0
B26: Compensada | C26: ='Oculto EcuS'!AZ80 -> 5.5 | D26: ='Oculto EcuS'!BA80 -> 33.3 | E26: ='Oculto EcuS'!BB80 -> 2.0
B29: Títulos | E29: Efecto sustitución | G29: =D26-D24 -> 0.0
B30: Resultados | E30: Efecto ingreso | G30: =D25-D26 -> 0.0
B31: Insertar datos | E31: Efecto total | G31: =G30+G29 -> 0.0
B32: Cantidad de equilibrio

Sheet Min Cobb-Douglas (hidden)
A1: IDENTIDAD DE SLUTSKY
A3: Cobb-Douglas
C4: RECTA PRESUPUESTAL
C5: m | D5: p1 | E5: x1 | F5: p2 | G5: x2
B6: Inicial | C6: 200.0 | D6: 4.0 | E6: =F13 -> 20.0 | F6: 5.0 | G6: =C13 -> 24.0
B7: Final | C7: =$C$6 -> 200.0 | D7: =D6 -> 4.0 | E7: =F14 -> 20.0 | F7: =$F$6 -> 5.0 | G7: =C14 -> 24.0
B8: Compensada | C8: ='Oculto EcuS'!BJ83 -> 200.0 | D8: =D7 -> 4.0 | E8: =F15 -> 20.0 | F8: =$F$6 -> 5.0 | G8: =C15 -> 24.0
C9: Inserte los datos correspondientes
C11: PARÁMETROS DE LA RECTA PRESUPUESTAL
C12: x2 | D12: b0 | E12: b1 | F12: x1
B13: Inicial | C13: =D13+(E13*F13) -> 24.0 | D13: =C6/F6 -> 40.0 | E13: =D6/F6*-1 -> -0.8 | F13: ='Oculto EcuS'!E27 -> 20.0
B14: Final | C14: =D14+(E14*F14) -> 24.0 | D14: =C7/F7 -> 40.0 | E14: =D7/F7*-1 -> -0.8 | F14: ='Oculto EcuS'!E56 -> 20.0
B15: Compensada | C15: =D15+(E15*F15) -> 24.0 | D15: =C8/F8 -> 40.0 | E15: =D8/F8*-1 -> -0.8 | F15: ='Oculto EcuS'!E85 -> 20.0
D17: Inicial | E17: Final | F17: Compensada
B18: Máxima cantidad de x1 | D18: =C6/D6 -> 50.0 | E18: =C7/D7 -> 50.0 | F18: =C8/D8 -> 50.0
B19: Máxima cantidad de x2 | D19: =C6/F6 -> 40.0 | E19: =C7/F7 -> 40.0 | F19: =C8/F8 -> 40.0
B20: Precio relativo (<0) | D20: =(D6/F6)*(-1) -> -0.8 | E20: =(D7/F7)*(-1) -> -0.8 | F20: =(D8/F8)*(-1) -> -0.8
C22: PARÁMETROS DE FUNCIÓN COBB-DOUGLAS
C23: k | D23: a | E23: x1* | F23: 1-a | G23: x2*
B24: Inicial | C24: ='Oculto EcuS'!BM28 -> 22.4 | D24: 0.5 | E24: ='Oculto EcuS'!BL27 -> 25.0 | F24: =1-D24 -> 0.5 | G24: ='Oculto EcuS'!BM27 -> 20.0
B25: Final | C25: ='Oculto EcuS'!BM57 -> 22.4 | D25: =D24 -> 0.5 | E25: ='Oculto EcuS'!BL56 -> 25.0 | F25: =1-D25 -> 0.5 | G25: ='Oculto EcuS'!BM56 -> 20.0
B26: Compensada | C26: ='Oculto EcuS'!BM86 -> 22.4 | D26: =D25 -> 0.5 | E26: ='Oculto EcuS'!BL85 -> 25.0 | F26: =1-D26 -> 0.5 | G26: ='Oculto EcuS'!BM85 -> 20.0
B29: Títulos | E29: Efecto sustitución | G29: =E26-E24 -> 0.0
B30: Resultados | E30: Efecto ingreso | G30: =E25-E26 -> 0.0
B31: Insertar datos | E31: Efecto total | G31: =G30+G29 -> 0.0
B32: Cantidad de equilibrio

Sheet Min CVyVE (hidden)
A1: IDENTIDAD DE SLUTSKY
A3: Cobb-Douglas
C4: RECTA PRESUPUESTAL
C5: m | D5: p1 | E5: x1 | F5: p2 | G5: x2
B6: Inicial | C6: 200.0 | D6: 4.0 | E6: =F13 -> 20.0 | F6: 5.0 | G6: =C13 -> 24.0
B7: Final | C7: =$C$6 -> 200.0 | D7: =D6 -> 4.0 | E7: =F14 -> 20.0 | F7: =$F$6 -> 5.0 | G7: =C14 -> 24.0
B8: Compensada | C8: ='Oculto EcuS'!BJ183 -> 200.0 | D8: =D7 -> 4.0 | E8: =F15 -> 20.0 | F8: =$F$6 -> 5.0 | G8: =C15 -> 24.0
C9: Inserte los datos correspondientes
C11: PARÁMETROS DE LA RECTA PRESUPUESTAL
C12: x2 | D12: b0 | E12: b1 | F12: x1
B13: Inicial | C13: =D13+(E13*F13) -> 24.0 | D13: =C6/F6 -> 40.0 | E13: =D6/F6*-1 -> -0.8 | F13: =G24 -> 20.0
B14: Final | C14: =D14+(E14*F14) -> 24.0 | D14: =C7/F7 -> 40.0 | E14: =D7/F7*-1 -> -0.8 | F14: =G25 -> 20.0
B15: Compensada | C15: =D15+(E15*F15) -> 24.0 | D15: =C8/F8 -> 40.0 | E15: =D8/F8*-1 -> -0.8 | F15: =G26 -> 20.0
D17: Inicial | E17: Final | F17: Compensada
B18: Máxima cantidad de x1 | D18: =C6/D6 -> 50.0 | E18: =C7/D7 -> 50.0 | F18: =C8/D8 -> 50.0
B19: Máxima cantidad de x2 | D19: =C6/F6 -> 40.0 | E19: =C7/F7 -> 40.0 | F19: =C8/F8 -> 40.0
B20: Precio relativo (<0) | D20: =(D6/F6)*(-1) -> -0.8 | E20: =(D7/F7)*(-1) -> -0.8 | F20: =(D8/F8)*(-1) -> -0.8
C22: PARÁMETROS DE FUNCIÓN COBB-DOUGLAS
C23: k | D23: a | E23: x1* | F23: 1-a | G23: x2*
B24: Inicial | C24: ='Oculto EcuS'!BM128 -> 22.4 | D24: 0.5 | E24: ='Oculto EcuS'!BL127 -> 25.0 | F24: =1-D24 -> 0.5 | G24: ='Oculto EcuS'!BM127 -> 20.0
B25: Final | C25: ='Oculto EcuS'!BM157 -> 22.4 | D25: =D24 -> 0.5 | E25: ='Oculto EcuS'!BL156 -> 25.0 | F25: =1-D25 -> 0.5 | G25: ='Oculto EcuS'!BM156 -> 20.0
B26: Compensada | C26: ='Oculto EcuS'!BM186 -> 22.4 | D26: =D25 -> 0.5 | E26: ='Oculto EcuS'!BL185 -> 25.0 | F26: =1-D26 -> 0.5 | G26: ='Oculto EcuS'!BM185 -> 20.0
B27: Equivalente | C27: =C25 -> 22.4 | D27: =D26 -> 0.5 | E27: ='Oculto EcuS'!BL214 -> 25.0 | F27: =1-D27 -> 0.5 | G27: ='Oculto EcuS'!BM214 -> 20.0
B29: Títulos | E29: Efecto sustitución | G29: =E26-E24 -> 0.0
B30: Resultados | E30: Efecto ingreso | G30: =E25-E26 -> 0.0
B31: Insertar datos | E31: Efecto total | G31: =G30+G29 -> 0.0
B32: Cantidad de equilibrio

Sheet Min CompPerf (hidden)
A1: IDENTIDAD DE SLUTSKY
A3: COMPLEMENTOS PERFECTOS
C4: RECTA PRESUPUESTAL
C5: m | D5: p1 | E5: x1 | F5: p2 | G5: x2
B6: Inicial | C6: 100.0 | D6: 4.0 | E6: =D24 -> 12.5 | F6: 4.0 | G6: =E24 -> 12.5
B7: Final | C7: =C6 -> 100.0 | D7: =D6 -> 4.0 | E7: =D25 -> 12.5 | F7: =F6 -> 4.0 | G7: =E25 -> 12.5
B8: Compensada | C8: ='Oculto EcuS'!AE91 -> 300.0 | D8: =D7 -> 4.0 | E8: =D26 -> 12.5 | F8: =F7 -> 4.0 | G8: =E26 -> 12.5
B9: Inserte los datos correspondientes | E9: Complementario 1 a: | G9: 1.0
C11: PARÁMETROS DE LA RECTA PRESUPUESTAL
C12: x2 | D12: b0 | E12: b1 | F12: x1
B13: Inicial | C13: =D13+(E13*F13) -> 12.5 | D13: =C6/F6 -> 25.0 | E13: =D6/F6*-1 -> -1.0 | F13: =E6 -> 12.5
B14: Final | C14: =E25 -> 12.5 | D14: =C7/F7 -> 25.0 | E14: =D7/F7*-1 -> -1.0 | F14: =D25 -> 12.5
B15: Compensada | C15: =E26 -> 12.5 | D15: =C8/F8 -> 75.0 | E15: =D8/F8*-1 -> -1.0 | F15: =D26 -> 12.5
D17: Inicial | E17: Final | F17: Compensada
B18: Máxima cantidad de x1 | D18: =C6/D6 -> 25.0 | E18: =C7/D7 -> 25.0 | F18: =C8/D8 -> 75.0
B19: Máxima cantidad de x2 | D19: =C6/F6 -> 25.0 | E19: =C7/F7 -> 25.0 | F19: =C8/F8 -> 75.0
B20: Precio relativo (<0) | D20: =E13 -> -1.0 | E20: =E14 -> -1.0 | F20: =E15 -> -1.0
C22: PARÁMETROS DE LA CURVA DE INDIFERENCIA
C23: k | D23: x1* | E23: x2*
B24: Inicial | C24: =MAX('Oculto EcuS'!AB23,'Oculto EcuS'!AC3) -> 60.0 | D24: ='Oculto EcuS'!BX28 -> 12.5 | E24: ='Oculto EcuS'!BX29 -> 12.5
B25: Final | C25: =MAX('Oculto EcuS'!AB55,'Oculto EcuS'!AC55) -> 60.0 | D25: ='Oculto EcuS'!BX60 -> 12.5 | E25: ='Oculto EcuS'!BX61 -> 12.5
B26: Compensada | C26: ='Oculto EcuS'!BX89 -> 100.0 | D26: ='Oculto EcuS'!BX92 -> 12.5 | E26: ='Oculto EcuS'!BX93 -> 12.5
B29: Títulos | E29: Efecto sustitución | G29: =D26-D24 -> 0.0
B30: Resultados | E30: Efecto ingreso | G30: =D26-D25 -> 0.0
B31: Insertar datos | E31: Efecto total | G31: =G30+G29 -> 0.0
B32: Cantidad de equilibrio

Sheet Min SustPerf (hidden)
A1: IDENTIDAD DE SLUTSKY
A3: SUSTITUTOS PERFECTOS
C4: RECTA PRESUPUESTAL
C5: m | D5: p1 | E5: x1 | F5: p2 | G5: x2
B6: Inicial | C6: 300.0 | D6: 4.0 | E6: =D24 -> 75.0 | F6: 6.0 | G6: =E24 -> 0.0
B7: Final | C7: =C6 -> 300.0 | D7: =D6 -> 4.0 | E7: =D25 -> 75.0 | F7: =F6 -> 6.0 | G7: =E25 -> 0.0
B8: Compensada | C8: ='Oculto EcuS'!CH95 -> 300.0 | D8: =D7 -> 4.0 | E8: =D26 -> 75.0 | F8: =F7 -> 6.0 | G8: =E26 -> 0.0
B9: Inserte los datos correspondientes | E9: Relación 1 a: | G9: 1.0
C11: PARÁMETROS DE LA RECTA PRESUPUESTAL
C12: x2 | D12: b0 | E12: b1 | F12: x1
B13: Inicial | C13: =D13+(E13*F13) -> 0.0 | D13: =C6/F6 -> 50.0 | E13: =D6/F6*-1 -> -0.7 | F13: =E6 -> 75.0
B14: Final | C14: =E25 -> 0.0 | D14: =C7/F7 -> 50.0 | E14: =D7/F7*-1 -> -0.7 | F14: =D25 -> 75.0
B15: Compensada | C15: =E26 -> 0.0 | D15: =C8/F8 -> 50.0 | E15: =D8/F8*-1 -> -0.7 | F15: =D26 -> 75.0
D17: Inicial | E17: Final | F17: Compensada
B18: Máxima cantidad de x1 | D18: =C6/D6 -> 75.0 | E18: =C7/D7 -> 75.0 | F18: =C8/D8 -> 75.0
B19: Máxima cantidad de x2 | D19: =C6/F6 -> 50.0 | E19: =C7/F7 -> 50.0 | F19: =C8/F8 -> 50.0
B20: Precio relativo (<0) | D20: =E13 -> -0.7 | E20: =E14 -> -0.7 | F20: =E15 -> -0.7
C22: PARÁMETROS DE LA CURVA DE INDIFERENCIA
C23: k | D23: x1* | E23: x2*
B24: Inicial | C24: ='Oculto EcuS'!CH28 -> 75.0 | D24: ='Oculto EcuS'!CH31 -> 75.0 | E24: ='Oculto EcuS'!CH27 -> 0.0
B25: Final | C25: ='Oculto EcuS'!CH63 -> 75.0 | D25: ='Oculto EcuS'!CH61 -> 75.0 | E25: ='Oculto EcuS'!CH62 -> 0.0
B26: Compensada | C26: ='Oculto EcuS'!CH98 -> 75.0 | D26: ='Oculto EcuS'!CH96 -> 75.0 | E26: ='Oculto EcuS'!CH97 -> 0.0
B29: Títulos | E29: Efecto sustitución | G29: ='Oculto EcuS'!CM108 -> 0.0
B30: Resultados | E30: Efecto ingreso | G30: ='Oculto EcuS'!CM109 -> 0.0
B31: Insertar datos | E31: Efecto total | G31: ='Oculto EcuS'!CM110 -> 0.0
B32: Cantidad de equilibrio

Sheet SustPerf EcuS (hidden)
A1: IDENTIDAD DE SLUTSKY
A3: SUSTITUTOS PERFECTOS
C4: RECTA PRESUPUESTAL
C5: m | D5: p1 | E5: x1 | F5: p2 | G5: x2
B6: Inicial | C6: 200.0 | D6: 4.0 | E6: =D24 -> 50.0 | F6: 5.0 | G6: =E24 -> 0.0
B7: Final | C7: =C6 -> 200.0 | D7: =D6 -> 4.0 | E7: =D25 -> 50.0 | F7: =F6 -> 5.0 | G7: =E25 -> 0.0
B8: Compensada | C8: ='Oculto EcuS'!AK95 -> 200.0 | D8: =D7 -> 4.0 | E8: =D26 -> 0.0 | F8: =F7 -> 5.0 | G8: =E26 -> 40.0
B9: Inserte los datos correspondientes | E9: Relación 1 a: | G9: 1.0
C11: PARÁMETROS DE LA RECTA PRESUPUESTAL
C12: x2 | D12: b0 | E12: b1 | F12: x1
B13: Inicial | C13: =D13+(E13*F13) -> 0.0 | D13: =C6/F6 -> 40.0 | E13: =D6/F6*-1 -> -0.8 | F13: =E6 -> 50.0
B14: Final | C14: =E25 -> 0.0 | D14: =C7/F7 -> 40.0 | E14: =D7/F7*-1 -> -0.8 | F14: =D25 -> 50.0
B15: Compensada | C15: =E26 -> 40.0 | D15: =C8/F8 -> 40.0 | E15: =D8/F8*-1 -> -0.8 | F15: =D26 -> 0.0
D17: Inicial | E17: Final | F17: Compensada
B18: Máxima cantidad de x1 | D18: =C6/D6 -> 50.0 | E18: =C7/D7 -> 50.0 | F18: =C8/D8 -> 50.0
B19: Máxima cantidad de x2 | D19: =C6/F6 -> 40.0 | E19: =C7/F7 -> 40.0 | F19: =C8/F8 -> 40.0
B20: Precio relativo (<0) | D20: =E13 -> -0.8 | E20: =E14 -> -0.8 | F20: =E15 -> -0.8
C22: PARÁMETROS DE LA CURVA DE INDIFERENCIA
C23: k | D23: x1* | E23: x2*
B24: Inicial | C24: ='Oculto EcuS'!AK28 -> 50.0 | D24: ='Oculto EcuS'!AK31 -> 50.0 | E24: ='Oculto EcuS'!AK32 -> 0.0
B25: Final | C25: ='Oculto EcuS'!AK63 -> 50.0 | D25: ='Oculto EcuS'!AK66 -> 50.0 | E25: ='Oculto EcuS'!AK67 -> 0.0
B26: Compensada | C26: ='Oculto EcuS'!AK98 -> 50.0 | D26: ='Oculto EcuS'!AK101 -> 0.0 | E26: ='Oculto EcuS'!AK102 -> 40.0
B29: Títulos | E29: Efecto sustitución | G29: ='Oculto EcuS'!AP108 -> 50.0
B30: Resultados | E30: Efecto ingreso | G30: ='Oculto EcuS'!AP109 -> -50.0
B31: Insertar datos | E31: Efecto total | G31: ='Oculto EcuS'!AP110 -> 0.0
B32: Cantidad de equilibrio
